Workbook

Sheet ORÇAMENTO
F1: Data Base SINAPI/BA: Agosto 2014
F2: Data Base SICRO/BA: Maio 2014
B4: SERVIÇO: | C4: EXECUÇÃO DAS OBRAS E SERVIÇOS RELATIVOS À RECUPERAÇÃO E ENRIQUECIMENTO DE ÁREAS DEGRADADAS DA ETAPA 1 DO PROJETO DE IRRIGAÇÃO SALITRE, EM JUAZEIRO, ESTADO DA BAHIA. | H4: MUNICÍPIO: Juazeiro - BA
B5: LOCAL: | C5: 6ª Superintendência Regional | H5: BDI - Serviços | I5: =ROUND('Composição do BDI'!D30,4) -> 0.2644
B6: DATA: | C6: Outubro de 2014 | H6: BDI - Materiais | I6: =ROUND('Composição do BDI'!D63,4) -> 0.168
A7: IT | B7: Código | C7: Base | D7: Descrição | E7: Und | F7: Quantidade | G7: Preço Unit. Base | H7: Preço Unitário | I7: Preço Total
A8: 1 | B8: =COMPOSIÇÕES!A80 -> CP003 | C8: Comp. | D8: Administração Local | E8: un | F8: 1 | G8: =COMPOSIÇÕES!H89 -> 146790 | H8: =ROUND(G8*(1+$I$5),2) -> 185601.28 | I8: =ROUND(H8*F8,2) -> 185601.28
A9: 2 | B9: =COMPOSIÇÕES!A13 -> CP001 | C9: Comp. | D9: Mobilização de pessoal e equipamentos | E9: un | F9: 1 | G9: =COMPOSIÇÕES!H19 -> 6143 | H9: =ROUND(G9*(1+$I$5),2) -> 7767.21 | I9: =ROUND(H9*F9,2) -> 7767.21
A10: 3 | B10: =COMPOSIÇÕES!A47 -> CP002 | C10: Comp. | D10: Desmobilização de pessoal e equipamentos | E10: un | F10: 1 | G10: =COMPOSIÇÕES!H53 -> 6143 | H10: 7767.21 | I10: 7767.21
A11: 4 | B11: 73805/001 | C11: Sinapi | D11: Instalação do Canteiro de Obras | E11: m² | F11: 30 | G11: 281.85 | H11: 356.37 | I11: 10691.1
A12: 5 | B12: CP025 | C12: Sinapi | D12: Condução e monitoramento do processo de recuperação das áreas degradadas | E12: mês | F12: 8 | G12: =COMPOSIÇÕES!H896 -> 1835.93 | H12: 2321.35 | I12: 18570.8
A13: 6 | B13: Tabela Consultiva - JAN/2014 | C13: Codevasf | D13: Fornecimento de veículo 4x4, com ar condicionado para apoio à fiscalização, incl. combustível, óleo, manutenção, licenciamento e seguros | E13: mês | F13: 6 | G13: 4934.04 | H13: 6238.6 | I13: 37431.6
A14: 7 | B14: 74209/001 | C14: Sinapi | D14: PLACAS DE OBRA EM CHAPA DE ACO GALVANIZADO | E14: m² | F14: =ROUND((2*4.608),2) -> 9.22 | G14: 345.72 | H14: 437.13 | I14: 4030.34
A15: 8 | B15: 4 S 06 200 01 | C15: SICRO 2 | D15: Placas de identificação de espécies e educação ambiental (Forn. e implantação placa sinaliz. semi-refletiva) | E15: m² | F15: =ROUND(0.576*131+0.04*200,2) -> 83.46 | G15: 198.13 | H15: 250.52 | I15: 20908.4
A16: 9 | B16: 73672 | C16: Sinapi | D16: DESMATAMENTO E LIMPEZA MECANIZADA DE TERRENO COM ALGAROBEIRAS ATE Ø 15CM | E16: m² | F16: 334000 | G16: 0.36 | H16: 0.46 | I16: 153640
A17: 10 | B17: 5 S 01 010 00 | C17: SICRO 2 | D17: Destocamento de algarobeiras c/ diâm. 0,15 a 030m | E17: un | F17: 1050 | G17: 26.24 | H17: 33.18 | I17: 34839
A18: 11 | B18: =COMPOSIÇÕES!A110 -> CP004 | C18: Comp. | D18: Construção de Paliçadas com resíduos de algarobeiras para prevenção e controle de processos erosivos em drenagens | E18: m² | F18: 180 | G18: =COMPOSIÇÕES!H116 -> 7.88 | H18: 9.96 | I18: 1792.8
A19: 12 | B19: 73698 | C19: Sinapi | D19: Construção de dissipadores hidráulicos para prevenção e controle de processos erosivos (ENROCAMENTO DE PEDRA ARRUMADA) | E19: m³ | F19: 108 | G19: 162.19 | H19: 205.07 | I19: 22147.56
A20: 13 | B20: =COMPOSIÇÕES!A144 -> CP005 | C20: Comp. | D20: Fornecimento e construção de cerca com onze fios de arame farpado e mourões de concreto seção quadrada a cada 7,5 m | E20: m | F20: 64600 | G20: =COMPOSIÇÕES!H156 -> 17.99 | H20: 22.75 | I20: 1469650
A21: 14 | B21: 74155/002 | C21: Sinapi | D21: DESCOMPACTAÇÃO DE SOLOS (ESCAVACAO E TRANSPORTE DE MATERIAL DE 2A CAT DMT 50M COM TRATOR SOBRE ESTEIRAS 305 HP COM LAMINA E ESCARIFICADOR) | E21: m³ | F21: =ROUND(30.8*10000*0.3,2) -> 92400 | G21: 2.67 | H21: 3.38 | I21: 312312
A22: 15 | B22: =COMPOSIÇÕES!A176 -> CP006 | C22: Comp. | D22: Gradeamento de Solos descompactados | E22: m² | F22: =ROUND(30.8*10000,2) -> 308000 | G22: =COMPOSIÇÕES!H180 -> 0.17 | H22: 0.21 | I22: 64680
A23: 16 | B23: 72915 | C23: Sinapi | D23: Abertura de trincheira em material de 2a categoria (ESCAVACAO MECANICA DE VALA EM MATERIAL DE 2A. CATEGORIA ATE 2 M DE PROFUNDIDADE COM UTILIZACAO DE ESCAVADEIRA HIDRAULICA) | E23: m³ | F23: =ROUND(166.666666666667,2) -> 166.67 | G23: 10.22 | H23: 12.92 | I23: 2153.38
A24: 17 | B24: 2 S 01 100 06 | C24: Sicro 2 | D24: Reposição de Topsoil (escavação, carga, transporte mat 1a cat com DMT até 1000 m.) | E24: m³ | F24: =ROUND(500+3680,2) -> 4180 | G24: 9.54 | H24: 12.06 | I24: 50410.8
A25: 18 | B25: 2 S 09 001 05 | C25: Sicro 2 | D25: Transporte local em rodovia não pavimentada | E25: m³xkm | F25: =ROUND(F24*9,2) -> 37620 | G25: 0.65 | H25: 0.82 | I25: 30848.4
A26: 19 | B26: =COMPOSIÇÕES!A210 -> CP007 | C26: Comp. | D26: Plantio de espécies nativas arbustivas, herbáceas e rasteiras (de acordo com as especificações de projeto) | E26: ha | F26: =ROUND(Quantificação!L26,2) -> 78.97 | G26: =COMPOSIÇÕES!H223 -> 9675.23 | H26: 12233.36 | I26: 966068.44
A27: 20 | B27: 1 A 00 201 70 | C27: Sicro 2 | D27: Transporte de água e Irrigação de mudas nativas arbustivas, herbáceas e rasteiras com carro pipa durante 8 meses, 1 vez a cada 14 dias | E27: txkm | F27: =ROUND(Quantificação!M26,2) -> 33810.44 | G27: 0.93 | H27: 1.18 | I27: 39896.32
A28: 21 | B28: 73859/002 | C28: Sinapi | D28: Manutenção de mudas de especies nativas arbóreas ou arbustivas, de acordo com especificações de projeto (CAPINA E LIMPEZA MANUAL DE TERRENO) | E28: m² | F28: =ROUND(0.2*Quantificação!N26*(416.7+416.7+833.3)*1^2*PI()/4,2) -> 20674.71 | G28: 0.9 | H28: 1.14 | I28: 23569.17
A29: 22 | B29: =COMPOSIÇÕES!A244 -> CP008 | C29: Comp. | D29: Recomposição do Banco de Sementes nativas do solo nas áreas a serem recuperadas ou enriquecidas | E29: ha | F29: 100 | G29: =COMPOSIÇÕES!H248 -> 62.52 | H29: 79.05 | I29: 7905
A30: 23 | B30: 85190 | C30: Sinapi | D30: Fornecimento e instalação de portão em aço galvanizado (PORTAO PARA VEICULOS EM BARRAS DE FERRO RETANGULAR CHATA E TELA DE ARAME GALVANIZADO, FIO 8 BWG, MALHA QUADRADA 5X5CM, INCLUSIVE CADEADO E PINTURA PVA EM PILARES DE APOIO DE CONCRETO) | E30: un | F30: 12 | G30: 2444.31 | H30: 3090.59 | I30: 37087.08
A31: 24 | B31: 73610 | C31: Sinapi | D31: LOCAÇÃO DE ALINHAMENTOS, UTILIZANDO EQUIPE DE TOPOGRAFIA COM PESSOAL E EQUIPAMENTOS | E31: m | F31: =ROUND(F20*1.1,2) -> 71060 | G31: 0.62 | H31: 0.78 | I31: 55426.8
A32: 25 | B32: 73698 | C32: Sinapi | D32: Enrocamento saída DPP1 Margem do rio São Francisco (ENROCAMENTO MANUAL, COM ARRUMACAO DO MATERIAL ) | E32: m³ | F32: 45 | G32: 162.19 | H32: 205.07 | I32: 9228.15
A33: 26 | B33: 72944 | C33: Sinapi | D33: PAVIMENTACAO EM PARALELEPIPEDO SOBRE COLCHAO DE AREIA 10CM, REJUNTADO COM AREIA | E33: m² | F33: 200 | G33: 33.11 | H33: 41.86 | I33: 8372
A34: 27 | B34: 74034/001 | C34: Sinapi | D34: Espalhamento de Bota-fora 1a Cat. Depositado na margem direita do trecho final do dreno principal (ESPALHAMENTO DE MATERIAL DE 1A CATEGORIA COM TRATOR DE ESTEIRA COM 153 HP) | E34: m³ | F34: 6300 | G34: 2.17 | H34: 2.74 | I34: 17262
A35: 28 | B35: 83336 | C35: Sinapi | D35: ESCAVACAO MECANICA PARA ACERTO DE TALUDES, EM MATERIAL DE 1A CATEGORIA, COM ESCAVADEIRA HIDRAULICA (Em trecho de 300 m do trecho final do dreno principal) | E35: m³ | F35: 792 | G35: 4.16 | H35: 5.26 | I35: 4165.92
A36: 29 | B36: =COMPOSIÇÕES!A277 -> CP009 | C36: Comp. | D36: Fornecimento e plantio de vetiver em mudas | E36: un | F36: =ROUND(300*15*10,2) -> 45000 | G36: =COMPOSIÇÕES!H284 -> 0.96 | H36: 1.21 | I36: 54450
A37: 30 | B37: 73962/013 | C37: Sinapi | D37: ESCAVACAO DE VALA EM MATERIAL 1A CATEGORIA , PROFUNDIDADE ATE 1,5 M para construção de canaletas de proteção de taludes | E37: m³ | F37: 80 | G37: 3.79 | H37: 4.79 | I37: 383.2
A38: 31 | B38: 5622 | C38: Sinapi | D38: REGULARIZACAO E COMPACTACAO MANUAL DE TERRENO COM SOQUETE para construção de canaletas de proteção de taludes | E38: m² | F38: 597 | G38: 3.71 | H38: 4.69 | I38: 2799.93
A39: 32 | B39: =COMPOSIÇÕES!A591 -> CP 016 | C39: SINAPI E COTAÇÃO | D39: CONCRETO FCK=15MPA (1:2,5:3) , INCLUIDO PREPARO MECANICO, LANCAMENTO E ADENSAMENTO para construção de canaletas de proteção de taludes | E39: m³ | F39: 44 | G39: =COMPOSIÇÕES!H604 -> 471.66 | H39: 596.37 | I39: 26240.28
A40: 33 | B40: =COMPOSIÇÕES!A341 -> CP 011 | C40: SICRO 2 E COMP. | D40: DESCIDA D'ÁGUA CORTES EM DEGRAUS ARM-DCD 02 AC/BC | E40: m | F40: 21 | G40: =COMPOSIÇÕES!H352 -> 145.49 | H40: 183.96 | I40: 3863.16
A41: 34 | B41: =COMPOSIÇÕES!A433 -> CP 013 | C41: SICRO 2 E COMP. | D41: DISSIPADOR DE ENERGIA - DEB 01 | E41: un | F41: 6 | G41: =COMPOSIÇÕES!H444 -> 220.6 | H41: 278.93 | I41: 1673.58
A42: 35 | B42: 74154/001 | C42: Sinapi | D42: ESCAVACAO, CARGA E TRANSPORTE DE MATERIAL DE 1A CATEGORIA COM TRATOR SOBRE ESTEIRAS 305 HP E CACAMBA 5M3, DMT 50 A 200M | E42: m³ | F42: 345 | G42: 4.63 | H42: 5.85 | I42: 2018.25
A43: 36 | B43: 5719 | C43: Sinapi | D43: REATERRO APILOADO EM CAMADAS 0,20M, UTILIZANDO MATERIAL ARGILO-ARENOSO ADQUIRIDO EM JAZIDA, JÁ CONSIDERANDO UM ACRÉSCIMO DE 25% NO VOLUME DO MATERIAL ADQUIRIDO, NÃO CONSIDERANDO O TRANSPORTE ATÉ O REATERRO | E43: m³ | F43: 345 | G43: 42.52 | H43: 53.76 | I43: 18547.2
A44: 37 | B44: 2 S 09 001 05 | C44: Sicro 2 | D44: Transporte local em rodovia não pavimentada | E44: m³xkm | F44: 13800 | G44: 0.65 | H44: 0.82 | I44: 11316
A45: 38 | B45: 73698 | C45: Sinapi | D45: ENROCAMENTO MANUAL, COM ARRUMACAO DO MATERIAL | E45: m³ | F45: 42 | G45: 162.19 | H45: 205.07 | I45: 8612.94
A46: 39 | B46: 72919 | C46: Sinapi | D46: REGULARIZACAO E COMPACTACAO MANUAL DE TALUDE COM SOLO-CIMENTO 6% | E46: m² | F46: =ROUND(8.4/0.05,2) -> 168 | G46: 48.06 | H46: 60.77 | I46: 10209.36
A47: 40 | B47: CP 015 | C47: Sicro 2 | D47: FORNECIMENTO E APLICAÇÃO DE CONCRETO FCK = 20 MPA NOS TALUDES DO DRENO | E47: m³ | F47: 16.8 | G47: =COMPOSIÇÕES!H559 -> 355.9555816 | H47: 450.07 | I47: 7561.18
A48: 41 | B48: 79480 | C48: Sinapi | D48: ESCAVACAO MECANICA CAMPO ABERTO EM SOLO EXCETO ROCHA ATE 2,00M PROFUNDIDADE PARA CONSTRUÇÃO DE MICROBACIAS DE RETENÇÃO EM ESTRADAS DIVERSAS | E48: m³ | F48: =ROUND(85*50,2) -> 4250 | G48: 2.25 | H48: 2.84 | I48: 12070
A49: 42 | B49: 74034/001 | C49: Sinapi | D49: ESPALHAMENTO E COMPACTAÇÃO DE MATERIAL DE 1A CATEGORIA COM TRATOR DE ESTEIRA COM 153 HP PARA CONSTRUÇÃO DE MICROBACIAS DE RETENÇÃO EM ESTRADAS DIVERSAS | E49: m³ | F49: =ROUND(85*50,2) -> 4250 | G49: 2.17 | H49: 2.74 | I49: 11645
A50: 43 | B50: 72213 | C50: Sinapi | D50: LIMPEZA MANUAL GERAL COM REMOCAO DE COBERTURA VEGETAL PARA IMPLANTAÇÃO DE TRILHAS ECOLÓGICAS | E50: m² | F50: =ROUND(0.5*Quantificação!AD26,2) -> 6000 | G50: 2.81 | H50: 3.55 | I50: 21300
A51: 44 | B51: 73859/001 | C51: Sinapi | D51: LIMPEZA MECANIZADA DE TERRENO COM REMOCAO DE CAMADA VEGETAL, UTILIZANDO TRATOR DE ESTEIRAS PARA LIMPEZA DO ACEIRO DA RESERVA LEGAL | E51: m² | F51: 103650 | G51: 0.15 | H51: 0.19 | I51: 19693.5
A52: Drenagem Pluvial da Parte Frontal da Administração da Etapa 1 do Projeto Salitre
A53: 45 | B53: 3061 | C53: Sinapi | D53: ESCAVACAO MEC VALA N ESCOR MAT 1A CAT C/RETROESCAV ATE 1,50M EXCL ESGOTAMENTO | E53: m³ | F53: 4 | G53: 5.66 | H53: =ROUND(G53*(1+$I$5),2) -> 7.16 | I53: =ROUND(H53*F53,2) -> 28.64
A54: 46 | B54: 72836 | C54: Sinapi | D54: ESCAVACAO, CARGA E TRANSPORTE DE MATERIAL DE 1A CATEGORIA, CAMINHO DE SERVICO PAVIMENTADO, COM ESCAVADEIRA HIDRAULICA E CAMINHAO BASCULANTE 6 M3, DMT 800 ATE 1.000 M | E54: m³ | F54: 1800 | G54: 3.98 | H54: =ROUND(G54*(1+$I$5),2) -> 5.03 | I54: =ROUND(H54*F54,2) -> 9054
A55: 47 | B55: 74005/001 | C55: Sinapi | D55: COMPACTACAO MECANICA, SEM CONTROLE DO GC (C/COMPACTADOR PLACA 400 KG) | E55: m³ | F55: 1800 | G55: 3.17 | H55: 4.01 | I55: 7218
A56: 48 | B56: 7793 | C56: Sinapi | D56: TUBO CONCRETO SIMPLES CLASSE - PS2 PB NBR-8890 DN 600MM P/AGUAS PLUVIAIS | E56: m | F56: 800 | G56: 57.25 | H56: 72.39 | I56: 57912
A57: 49 | B57: 73722 | C57: Sinapi | D57: ASSENTAMENTO DE TUBOS DE CONCRETO DIAMETRO = 600MM, SIMPLES OU ARMADO, JUNTA EM ARGAMASSA 1:3 CIMENTO:AREIA | E57: m | F57: 800 | G57: 34.89 | H57: 44.11 | I57: 35288
A58: 50 | B58: 72840 | C58: Sinapi | D58: TRANSPORTE COMERCIAL COM CAMINHAO CARROCERIA 9 T, RODOVIA PAVIMENTADA | E58: txkm | F58: =ROUND(0.33*30*800,2) -> 7920 | G58: 0.45 | H58: 0.57 | I58: 4514.4
A59: 51 | B59: 1523 | C59: Sinapi | D59: FORNECIMENTO E ASSENTAMENTO DE LASTRO DE CONCRETO USINADO CONVENCIONAL COM BRITA 1 E 2, SLUMP = 80 MM +/- 10 MM, FCK = 15 MPA (NÃO BOMBEAVEL) | E59: m³ | F59: 1 | G59: 259.78 | H59: 328.47 | I59: 328.47
A60: 52 | B60: CP 017 | C60: SINAPI E COTAÇÃO | D60: CONCRETO ARMADO DOSADO 15 MPA INCL MAT P/ 1 M3 PREPARO CONF COMP 5845 COLOC CONF COMP 7090 14 M2 DE AREA MOLDADA FORMAS E ESCORAMENTO CONF COMPS 5306 E 5708 60 KG DE ACO CA-50 INC MAO DE OBRA P/CORTE DOBRAGEM MONTAGEM E COLO | E60: m³ | F60: 0.9 | G60: =COMPOSIÇÕES!H643 -> 1522.34 | H60: 1924.85 | I60: 1732.37
A61: 53 | B61: 73998/004 | C61: Sinapi | D61: ALVENARIA DE BLOCOS DE CONCRETO ESTRUTURAL 14X19X39CM, ESPESSURA 14CM, ASSENTADOS COM ARGAMASSA TRACO 1:0,25:4 (CIMENTO, CAL E AREIA) | E61: m² | F61: 40 | G61: 56.45 | H61: 71.38 | I61: 2855.2
A62: Galpão de Transbordo de Embalagens de Agrotóxicos
A63: 54 | B63: 72822 | C63: SINAPI | D63: ESCAVACAO, CARGA E TRANSPORTE DE MATERIAL DE 1A CATEGORIA, CAMINHO DE SERVICO LEITO NATURAL, COM ESCAVADEIRA HIDRAULICA E CAMINHAO BASCULANT E 6 M3, DMT ATE 600 M | E63: M³ | F63: 150 | G63: 4.35 | H63: =ROUND(G63*(1+$I$5),2) -> 5.5 | I63: =ROUND(H63*F63,2) -> 825
A64: 55 | B64: 74153/001 | C64: SINAPI | D64: ESPALHAMENTO MECANIZADO MATERIAL 1A. CATEGORIA | E64: M2 | F64: 225 | G64: 0.22 | H64: =ROUND(G64*(1+$I$5),2) -> 0.28 | I64: =ROUND(H64*F64,2) -> 63
A65: 56 | B65: 79490 | C65: SINAPI | D65: COMPACTACAO MECANICA | E65: M³ | F65: 150 | G65: 1.49 | H65: 1.88 | I65: 282
A66: 57 | B66: 73965/010 | C66: SINAPI | D66: ESCAVACAO MANUAL DE VALA EM MATERIAL DE 1A CATEGORIA ATE 1,5M | E66: M³ | F66: 10 | G66: 39.39 | H66: 49.8 | I66: 498
A67: 58 | B67: 73844/001 | C67: SINAPI | D67: ALVENARIA DE PEDRA ARGAMASSA | E67: M³ | F67: 7.7 | G67: 395.97 | H67: 500.66 | I67: 3855.08
A68: 59 | B68: CP 017 | C68: SINAPI | D68: CONCRETO ARMADO DOSADO 15 MPA INCL MAT P/ 1 M3 PREPARO CONF COMP 5845 COLOC CONF COMP 7090 14 M2 DE AREA MOLDADA FORMAS E ESCORAMENTO CONF COMPS 5306 E 60 KG DE ACO CA-50 INC MAO DE OBRA P/CORTE DOBRAGEM MONTAGEM E COLO | E68: M³ | F68: 5 | G68: =COMPOSIÇÕES!H643 -> 1522.34 | H68: 1924.85 | I68: 9624.25
A69: 60 | B69: 87519 | C69: SINAPI | D69: ALVENARIA DE VEDAÇÃO DE BLOCOS CERÂMICOS FURADOS NA HORIZONTAL DE 9X19 X19CM (ESPESSURA 9CM) DE PAREDES COM ÁREA LÍQUIDA MAIOR OU IGUAL A 6M² COM VÃOS E ARGAMASSA DE ASSENTAMENTO COM PREPARO EM BETONEIRA. AF_06/2014_P | E69: M2 | F69: 245 | G69: 53 | H69: 67.01 | I69: 16417.45
A70: 61 | B70: 87893 | C70: SINAPI | D70: CHAPISCO APLICADO TANTO EM PILARES E VIGAS DE CONCRETO COMO EM ALVENARIA DE FACHADA SEM PRESENÇA DE VÃOS, COM COLHER DE PEDREIRO. ARGAMASSA TRAÇO 1:3 COM PREPARO MANUAL. AF_06/2014 | E70: M2 | F70: 480 | G70: 4.32 | H70: 5.46 | I70: 2620.8
A71: 62 | B71: 87448 | C71: SINAPI | D71: ALVENARIA DE VEDAÇÃO DE BLOCOS VAZADOS DE CONCRETO DE 9X19X39CM (ESPES 9CM) DE PAREDES COM ÁREA LÍQUIDA MENOR QUE 6M² SEM VÃOS E ARGAMASSA DE ASSENTAMENTO COM PREPARO MANUAL. AF_06/2014_P | E71: M2 | F71: 9.1 | G71: 38.48 | H71: 48.65 | I71: 442.72
A72: 63 | B72: CP 020 | C72: SINAPI | D72: CONTRAPISO/LASTRO DE CONCRETO NAO-ESTRUTURAL, E=5CM, PREPARO COM BETONEIRA | E72: M2 | F72: 130 | G72: =COMPOSIÇÕES!H720 -> 26.2 | H72: 33.13 | I72: 4306.9
A73: 64 | B73: 87807 | C73: SINAPI | D73: EMBOÇO OU MASSA ÚNICA EM ARGAMASSA TRAÇO 1:2:8, PREPARO MANUAL, APLICADA MANUALMENTE EM PANOS CEGOS DE FACHADA (SEM PRESENÇA DE VÃOS), ESPESSURA MAIOR OU IGUAL A 50 MM. AF_06/2014 | E73: M2 | F73: 480 | G73: 44.1 | H73: 55.76 | I73: 26764.8
A74: 65 | B74: 73465 | C74: SINAPI | D74: PISO CIMENTADO E=1,5CM C/ARGAMASSA 1:3 CIMENTO AREIA ALISADO COLHER SOBRE BASE EXISTENTE | E74: M2 | F74: 50 | G74: 26.57 | H74: 33.6 | I74: 1680
A75: 66 | B75: 72111 | C75: SINAPI | D75: ESTRUTURA METALICA EM TESOURAS OU TRELICAS, VAO LIVRE DE 15M, FORNECIMENTO E MONTAGEM, NAO SENDO CONSIDERADOS OS FECHAMENTOS METALICOS E A PINTURA DE ACABAMENTO | E75: M2 | F75: 109 | G75: 63.37 | H75: 80.13 | I75: 8734.17
A76: 67 | B76: 84037 | C76: SINAPI | D76: COBERTURA COM TELHA DE FIBROCIMENTO ONDULADA, ESPESSURA 6 MM, COM CUMEEIRA UNIVERSAL, INCLUSAS JUNTAS DE DILATACAO E ACESSORIOS DE FIXACAO | E76: M2 | F76: 109 | G76: 41.64 | H76: 52.65 | I76: 5738.85
A77: 68 | B77: 88417 | C77: SINAPI | D77: PINTURA COM TINTA TEXTURIZADA ACRÍLICA EM PANOS CEGOS DE FACHADA (SEM PRESENÇA DE VÃOS) DE EDIFÍCIOS DE MÚLTIPLOS PAVIMENTOS, UMA COR. AF_06/2014 | E77: M2 | F77: 367 | G77: 15.75 | H77: 19.91 | I77: 7306.97
A78: 69 | B78: 68054 | C78: SINAPI | D78: PORTAO DE FERRO EM CHAPA GALVANIZADA PLANA 14 GSG | E78: M2 | F78: 18.1 | G78: 155.37 | H78: 196.45 | I78: 3555.75
A79: 70 | B79: 74145/001 | C79: SINAPI | D79: PINTURA ESMALTE FOSCO, DUAS DEMAOS, SOBRE SUPERFICIE METALICA, INCLUSO UMA DEMAO DE FUNDO ANTICORROSIVO. UTILIZACAO DE REVOLVER ( AR-COMPRIMIDO). | E79: M2 | F79: 36.2 | G79: 13.89 | H79: 17.56 | I79: 635.67
A80: 71 | B80: 87251 | C80: SINAPI | D80: REVESTIMENTO CERÂMICO PARA PISO COM PLACAS TIPO GRÊS DE DIMENSÕES 45X45 | E80: M2 | F80: 94 | G80: 29.9 | H80: 37.81 | I80: 3554.14
A81: 72 | B81: 75051/003 | C81: SINAPI | D81: TUBO DE PVC SOLDAVEL, SEM CONEXOES 32MM - FORNECIMENTO E INSTALACAO | E81: M | F81: 300 | G81: 9.16 | H81: 11.58 | I81: 3474
A82: 73 | B82: 3061 | C82: SINAPI | D82: ESCAVACAO MEC VALA N ESCOR MAT 1A CAT C/RETROESCAV ATE 1,50M EXCL ESGOTAMENTO | E82: M³ | F82: 50 | G82: 5.66 | H82: 7.16 | I82: 358
A83: 74 | B83: 73964/003 | C83: SINAPI | D83: REATERRO VALA/CAVA MEC CV EXCL COMPACTACAO | E83: M³ | F83: 50 | G83: 1.75 | H83: 2.21 | I83: 110.5
A84: 75 | B84: =COMPOSIÇÕES!A742 -> CP 021 | C84: SINAPI | D84: =COMPOSIÇÕES!B742 -> Instalação Hidráulica (Esgoto) - Galpão de Transbordo de Embalagens de Agrotóxicos | E84: UN | F84: 1 | G84: =COMPOSIÇÕES!H755 -> 340.04 | H84: 429.95 | I84: 429.95
A85: 76 | B85: =COMPOSIÇÕES!A771 -> CP 022 | C85: SINAPI | D85: =COMPOSIÇÕES!B771 -> Instalação Hidráulica (Água) - Galpão de Transbordo de Embalagens de Agrotóxicos | E85: UN | F85: 1 | G85: =COMPOSIÇÕES!H785 -> 508.5 | H85: 642.95 | I85: 642.95
A86: 77 | B86: =COMPOSIÇÕES!A798 -> CP 023 | C86: SINAPI/ ORSE | D86: =COMPOSIÇÕES!B798 -> Instalação Elétrica - Galpão de Transbordo de Embalagens de Agrotóxicos | E86: UN | F86: 1 | G86: =COMPOSIÇÕES!H830 -> 1997.88 | H86: 2526.12 | I86: 2526.12
A87: 78 | B87: =COMPOSIÇÕES!A853 -> CP 024 | C87: SINAPI | D87: =COMPOSIÇÕES!B853 -> Ramal Elétrico Aéreo - Galpão de Transbordo de Embalagens de Agrotóxicos | E87: UN | F87: 1 | G87: =COMPOSIÇÕES!H879 -> 8303.16 | H87: 10498.52 | I87: 10498.52
F89: Preço Global | I89: =SUM(I8:I87) -> 4050483.01

Sheet COMPOSIÇÕES
A5: SERVIÇO: | B5: EXECUÇÃO DAS OBRAS E SERVIÇOS RELATIVOS À RECUPERAÇÃO E ENRIQUECIMENTO DE ÁREAS DEGRADADAS DA ETAPA 1 DO PROJETO DE IRRIGAÇÃO SALITRE, EM JUAZEIRO, ESTADO DA BAHIA.
A6: LOCAL: | B6: 6ª Superintendência Regional
A7: MUNICÍPIOS: | B7: Juazeiro - BA
B9: COMPOSIÇÃO ANALÍTICA DE PREÇO UNITÁRIO | F9: Data Base SINAPI/BA: Agosto 2014
F10: Data Base SICRO/BA: Maio 2014
A11: Código | B11: Base
C12: Insumo/Serv. | D12: Descrição | E12: Unidade | F12: Quantidade | G12: Preço Unitário | H12: Preço Total
A13: CP001 | B13: Mobilização de Pessoal e Equipamentos | E13: un
A14: 1286 | B14: Sinapi | C14: I | D14: Cavalo com carreta prancha 20t | E14: h | F14: 20 | G14: 160.95 | H14: =+ROUND(F14*G14,2) -> 3219
A15: 1142 | B15: Sinapi | C15: I | D15: Caminhão Carroceria 6 a 8t | E15: h | F15: 20 | G15: 43.35 | H15: =+ROUND(F15*G15,2) -> 867
A16: 1133 | B16: Sinapi | C16: I | D16: Caminhão Basculante 5 m³ | E16: h | F16: 20 | G16: 61.2 | H16: =+ROUND(F16*G16,2) -> 1224
A17: Tabela Consultiva Jan/ 2014 | B17: Codevasf | C17: I | D17: Veículo Leve Tipo Hatch 1.0 Flex (72 CV), com motorista | E17: km | F17: 700 | G17: 1.19 | H17: =+ROUND(F17*G17,2) -> 833
D19: Total da Composição sem BDI | H19: =ROUND(SUM(H14:H17),2) -> 6143
A34: 1
A39: SERVIÇO: | B39: EXECUÇÃO DAS OBRAS E SERVIÇOS RELATIVOS À RECUPERAÇÃO E ENRIQUECIMENTO DE ÁREAS DEGRADADAS DA ETAPA 1 DO PROJETO DE IRRIGAÇÃO SALITRE, EM JUAZEIRO, ESTADO DA BAHIA.
A40: LOCAL: | B40: 6ª Superintendência Regional
A41: MUNICÍPIOS: | B41: Juazeiro - BA
B43: COMPOSIÇÃO ANALÍTICA DE PREÇO UNITÁRIO | F43: Data Base SINAPI/BA: Agosto 2014
F44: Data Base SICRO/BA: Maio 2014
A45: Código | B45: Base
C46: Insumo/Serv. | D46: Descrição | E46: Unidade | F46: Quantidade | G46: Preço Unitário | H46: Preço Total
A47: CP002 | B47: Desmobilização de Pessoal e Equipamentos | E47: un
A48: 1286 | B48: Sinapi | C48: I | D48: Cavalo com carreta prancha 20t | E48: h | F48: 20 | G48: 160.95 | H48: =+ROUND(F48*G48,2) -> 3219
A49: 1142 | B49: Sinapi | C49: I | D49: Caminhão Carroceria 6 a 8t | E49: h | F49: 20 | G49: 43.35 | H49: =+ROUND(F49*G49,2) -> 867
A50: 1133 | B50: Sinapi | C50: I | D50: Caminhão Basculante 5 m3 | E50: h | F50: 20 | G50: 61.2 | H50: =+ROUND(F50*G50,2) -> 1224
A51: Tabela Consultiva Jan/ 2014 | B51: Codevasf | C51: I | D51: Veículo Leve Tipo Hatch 1.0 Flex (72 CV), com motorista | E51: km | F51: 700 | G51: 1.19 | H51: =+ROUND(F51*G51,2) -> 833
D53: Total da Composição sem BDI | H53: =ROUND(SUM(H48:H51),2) -> 6143
A67: 2
A72: SERVIÇO: | B72: EXECUÇÃO DAS OBRAS E SERVIÇOS RELATIVOS À RECUPERAÇÃO E ENRIQUECIMENTO DE ÁREAS DEGRADADAS DA ETAPA 1 DO PROJETO DE IRRIGAÇÃO SALITRE, EM JUAZEIRO, ESTADO DA BAHIA.
A73: LOCAL: | B73: 6ª Superintendência Regional
A74: MUNICÍPIOS: | B74: Juazeiro - BA
B76: COMPOSIÇÃO ANALÍTICA DE PREÇO UNITÁRIO | F76: Data Base SINAPI/BA: Agosto 2014
F77: Data Base SICRO/BA: Maio 2014
A78: Código | B78: Base
C79: Insumo/Serv. | D79: Descrição | E79: Unidade | F79: Quantidade | G79: Preço Unitário | H79: Preço Total
A80: CP003 | D80: Administração local e manutenção de canteiro | E80: un | F80: h*d*quant*mês
A81: 2706 | B81: Sinapi | C81: I | D81: Engenheiro Junior | E81: h | F81: =4*22*1*6 -> 528 | G81: 56.76 | H81: =+ROUND(F81*G81,2) -> 29969.28
A82: 2355 | B82: Sinapi | C82: I | D82: Desenhista Detalhista | E82: h | F82: =8*22*1*2 -> 352 | G82: 10.14 | H82: 3569.28
A83: 528 | B83: Sinapi | C83: I | D83: Auxiliar Técnico | E83: h | F83: =8*22*1*6 -> 1056 | G83: 19.16 | H83: 20232.96
A84: 4069 | B84: Sinapi | C84: I | D84: Mestre de Obra | E84: h | F84: =8*22*1*6 -> 1056 | G84: 40.76 | H84: 43042.56
A85: 0253 | B85: Sinapi | C85: I | D85: Almoxarife | E85: h | F85: =8*22*1*6 -> 1056 | G85: 16.47 | H85: 17392.32
A86: 10508 | B86: Sinapi | C86: I | D86: Vigia | E86: h | F86: =12*30*1*6 -> 2160 | G86: 13.3 | H86: 28728
A87: Tabela Consultiva Jan/ 2014 | B87: Codevasf | C87: I | D87: Veículo Leve Tipo Hatch 1.0 Flex (72 CV), com motorista | E87: km | F87: =20*22*6+2*2*25*6 -> 3240 | G87: 1.19 | H87: 3855.6
D89: Total da Composição sem BDI | H89: =ROUND(SUM(H81:H87),2) -> 146790
A97: 3
A102: SERVIÇO: | B102: EXECUÇÃO DAS OBRAS E SERVIÇOS RELATIVOS À RECUPERAÇÃO E ENRIQUECIMENTO DE ÁREAS DEGRADADAS DA ETAPA 1 DO PROJETO DE IRRIGAÇÃO SALITRE, EM JUAZEIRO, ESTADO DA BAHIA.
A103: LOCAL: | B103: 6ª Superintendência Regional
A104: MUNICÍPIOS: | B104: Juazeiro - BA
B106: COMPOSIÇÃO ANALÍTICA DE PREÇO UNITÁRIO | F106: Data Base SINAPI/BA: Agosto 2014
F107: Data Base SICRO/BA: Maio 2014
A108: Código | B108: Base
C109: Insumo/Serv. | D109: Descrição | E109: Unidade | F109: Quantidade | G109: Preço Unitário | H109: Preço Total
A110: CP004 | B110: Construção de Paliçada | E110: m2
A111: 72838 | B111: Sinapi | C111: S | D111: Transporte c/ caminhão carroceria | E111: txkm | F111: 0.75 | G111: 0.67 | H111: =+ROUND(F111*G111,2) -> 0.5
A112: 10763 | B112: Sinapi | C112: I | D112: Motosserra a Gasolina Portátil | E112: h | F112: 0.25 | G112: 1.76 | H112: =+ROUND(F112*G112,2) -> 0.44
A113: 79480 | B113: Sinapi | C113: S | D113: Escavação Mecânica | E113: m3 | F113: 0.3 | G113: 2.25 | H113: =+ROUND(F113*G113,2) -> 0.68
A114: 6121 | B114: Sinapi | C114: I | D114: Auxiliar de Serv. Gerais | E114: h | F114: 1 | G114: 6.26 | H114: =+ROUND(F114*G114,2) -> 6.26
D116: Total da Composição sem BDI | H116: =ROUND(SUM(H111:H114),2) -> 7.88
A131: 4
A136: SERVIÇO: | B136: EXECUÇÃO DAS OBRAS E SERVIÇOS RELATIVOS À RECUPERAÇÃO E ENRIQUECIMENTO DE ÁREAS DEGRADADAS DA ETAPA 1 DO PROJETO DE IRRIGAÇÃO SALITRE, EM JUAZEIRO, ESTADO DA BAHIA.
A137: LOCAL: | B137: 6ª Superintendência Regional
A138: MUNICÍPIOS: | B138: Juazeiro - BA
B140: COMPOSIÇÃO ANALÍTICA DE PREÇO UNITÁRIO | F140: Data Base SINAPI/BA: Agosto 2014
F141: Data Base SICRO/BA: Maio 2014
A142: Código | B142: Base
C143: Insumo/Serv. | D143: Descrição | E143: Unidade | F143: Quantidade | G143: Preço Unitário | H143: Preço Total
A144: CP005 | B144: Cerca de Arame Farpado 10 Fios | E144: m
A145: 340 | B145: Sinapi | C145: I | D145: ARAME FARPADO 16 BWG 4 X 4" - 23,50 KG/ROLO 500M | E145: m | F145: 10 | G145: 0.64 | H145: =+ROUND(F145*G145,2) -> 6.4
A146: 335 | B146: Sinapi | C146: I | D146: ARAME GALVANIZADO 10 BWG - 3,40MM - 71,30 G/M | E146: kg | F146: =71.3*5*1.4/1000 -> 0.4991 | G146: 7.89 | H146: 3.94
A147: 344 | B147: Sinapi | C147: I | D147: ARAME GALVANIZADO 16 BWG - 1,65MM - 16,60 G/M | E147: kg | F147: =16.6*0.35*20/1000 -> 0.1162 | G147: 9.87 | H147: 1.15
A148: 4111 | B148: Sinapi | C148: I | D148: ESCORA OU MOURAO DE CONCRETO 10X10CM H = 2,30M | E148: Unidade | F148: =1/10 -> 0.1 | G148: 24.78 | H148: 2.48
A149: 4107 | B149: Sinapi | C149: I | D149: MOURAO CONCRETO RETO 15X15CM H = 2,30M | E149: Unidade | F149: 0.02 | G149: 30.29 | H149: 0.61
A150: CP 027 (5652) | B150: Cotação e Sinapi | C150: S | D150: Concreto Não Estrutural | E150: m3 | F150: =0.04/10 -> 0.004 | G150: =H319 -> 285.2 | H150: 1.14
A151: 72838 | B151: Sinapi | C151: S | D151: Transporte com Caminhão Carroceria | E151: tXkm | F151: 0.68 | G151: 0.67 | H151: 0.46
A152: 72213 | B152: Sinapi | C152: S | D152: Limpeza manual Geral | E152: m2 | F152: 0.3 | G152: 2.81 | H152: 0.84
A153: 6111 | B153: Sinapi | C153: I | D153: Servente | E153: h | F153: 0.08 | G153: 6.56 | H153: 0.52
A154: 4750 | B154: Sinapi | C154: I | D154: Pedreiro | E154: h | F154: 0.04 | G154: 11.18 | H154: 0.45
D156: Total da Composição sem BDI | H156: =ROUND(SUM(H145:H154),2) -> 17.99
A163: 5
A168: SERVIÇO: | B168: EXECUÇÃO DAS OBRAS E SERVIÇOS RELATIVOS À RECUPERAÇÃO E ENRIQUECIMENTO DE ÁREAS DEGRADADAS DA ETAPA 1 DO PROJETO DE IRRIGAÇÃO SALITRE, EM JUAZEIRO, ESTADO DA BAHIA.
A169: LOCAL: | B169: 6ª Superintendência Regional
A170: MUNICÍPIOS: | B170: Juazeiro - BA
B172: COMPOSIÇÃO ANALÍTICA DE PREÇO UNITÁRIO | F172: Data Base SINAPI/BA: Agosto 2014
F173: Data Base SICRO/BA: Maio 2014
A174: Código | B174: Base
C175: Insumo/Serv. | D175: Descrição | E175: Unidade | F175: Quantidade | G175: Preço Unitário | H175: Preço Total
A176: CP006 | B176: Gradeamento de Solos Descompactados | E176: m2
A177: 5689 | B177: Sinapi | C177: S | D177: Grade Aradora | E177: CHP | F177: 0.015 | G177: 6.51 | H177: =+ROUND(F177*G177,2) -> 0.1
A178: 6111 | B178: Sinapi | C178: I | D178: Servente | E178: h | F178: 0.01 | G178: 6.56 | H178: =+ROUND(F178*G178,2) -> 0.07
D180: Total da Composição sem BDI | H180: =ROUND(SUM(H177:H178),2) -> 0.17
A197: 6
A202: SERVIÇO: | B202: EXECUÇÃO DAS OBRAS E SERVIÇOS RELATIVOS À RECUPERAÇÃO E ENRIQUECIMENTO DE ÁREAS DEGRADADAS DA ETAPA 1 DO PROJETO DE IRRIGAÇÃO SALITRE, EM JUAZEIRO, ESTADO DA BAHIA.
A203: LOCAL: | B203: 6ª Superintendência Regional
A204: MUNICÍPIOS: | B204: Juazeiro - BA
B206: COMPOSIÇÃO ANALÍTICA DE PREÇO UNITÁRIO | F206: Data Base SINAPI/BA: Agosto 2014
F207: Data Base SICRO/BA: Maio 2014
A208: Código | B208: Base
C209: Insumo/Serv. | D209: Descrição | E209: Unidade | F209: Quantidade | G209: Preço Unitário | H209: Preço Total
A210: CP007 | B210: Plantio de Espécies Nativas | E210: ha
A211: 360 | B211: Sinapi | C211: I | D211: Mudas Rasteiras da região | E211: Unidade | F211: 416 | G211: 1 | H211: =+ROUND(F211*G211,2) -> 416
A212: 349 | B212: Sinapi | C212: I | D212: Mudas Herbáceas da Região | E212: Unidade | F212: 416 | G212: 1.05 | H212: 436.8
A213: 365 | B213: Sinapi | C213: I | D213: Mudas Arbustivas da Região | E213: Unidade | F213: 833 | G213: 5.42 | H213: 4514.86
A214: 79480 | B214: Sinapi | C214: S | D214: Escavação Em Campo Aberto | E214: m3 | F214: 107 | G214: 2.25 | H214: 240.75
A215: 79489 | B215: Sinapi | C215: S | D215: Reaterro Manual sem Apiloamento | E215: m3 | F215: 107 | G215: 5.06 | H215: 541.42
A216: 159 | B216: Sinapi | C216: I | D216: Adubo Orgânico Bovino | E216: m3 | F216: 17 | G216: 164.99 | H216: 2804.83
A217: CT001 | B217: Cotação | C217: I | D217: Polímero Hidroabsorvente Agrícola | E217: g | F217: 4166 | G217: 0.04 | H217: 166.64
A218: CT002 | B218: Cotação | C218: I | D218: Isca Para Combate a Formiga | E218: kg | F218: 1 | G218: 7 | H218: 7
A219: 72838 | B219: Sinapi | C219: S | D219: Transporte com Caminhão Carroceria | E219: txkm | F219: 266.7 | G219: 0.67 | H219: 178.69
A220: 6121 | B220: Sinapi | C220: I | D220: Auxiliar de Serviços Gerais | E220: h | F220: 48 | G220: 6.26 | H220: 300.48
A221: 25964 | B221: Sinapi | C221: I | D221: Jardineiro | E221: h | F221: 8 | G221: 8.47 | H221: 67.76
D223: Total da Composição sem BDI | H223: =ROUND(SUM(H211:H221),2) -> 9675.23
A231: 7
A236: SERVIÇO: | B236: EXECUÇÃO DAS OBRAS E SERVIÇOS RELATIVOS À RECUPERAÇÃO E ENRIQUECIMENTO DE ÁREAS DEGRADADAS DA ETAPA 1 DO PROJETO DE IRRIGAÇÃO SALITRE, EM JUAZEIRO, ESTADO DA BAHIA.
A237: LOCAL: | B237: 6ª Superintendência Regional
A238: MUNICÍPIOS: | B238: Juazeiro - BA
B240: COMPOSIÇÃO ANALÍTICA DE PREÇO UNITÁRIO | F240: Data Base SINAPI/BA: Agosto 2014
F241: Data Base SICRO/BA: Maio 2014
A242: Código | B242: Base
C243: Insumo/Serv. | D243: Descrição | E243: Unidade | F243: Quantidade | G243: Preço Unitário | H243: Preço Total
A244: CP008 | B244: Recomposição de Banco de Sementes | E244: ha
A245: CT003 | B245: Cotação | C245: S | D245: Aquisição e Fornecimento de sementes de Espécies Nativas | E245: kg | F245: 1 | G245: 50 | H245: =+ROUND(F245*G245,2) -> 50
A246: 6121 | B246: Sinapi | C246: I | D246: Auxiliar de Serviços Gerais | E246: h | F246: 2 | G246: 6.26 | H246: =+ROUND(F246*G246,2) -> 12.52
D248: Total da Composição sem BDI | H248: =ROUND(SUM(H245:H246),2) -> 62.52
A264: 8
A269: SERVIÇO: | B269: EXECUÇÃO DAS OBRAS E SERVIÇOS RELATIVOS À RECUPERAÇÃO E ENRIQUECIMENTO DE ÁREAS DEGRADADAS DA ETAPA 1 DO PROJETO DE IRRIGAÇÃO SALITRE, EM JUAZEIRO, ESTADO DA BAHIA.
A270: LOCAL: | B270: 6ª Superintendência Regional
A271: MUNICÍPIOS: | B271: Juazeiro - BA
B273: COMPOSIÇÃO ANALÍTICA DE PREÇO UNITÁRIO | F273: Data Base SINAPI/BA: Agosto 2014
F274: Data Base SICRO/BA: Maio 2014
A275: Código | B275: Base
C276: Insumo/Serv. | D276: Descrição | E276: Unidade | F276: Quantidade | G276: Preço Unitário | H276: Preço Total
A277: CP009 | B277: Aquisição, fornecimento e plantio de vetiver | E277: un
A278: CT004 | B278: Cotação | C278: S | D278: Aquisição e fornecimento de mudas de vetiver (Vetiveria zizanioides) | E278: un | F278: =120000/120000 -> 1 | G278: =(1+0.64+0.68)/3 -> 0.7733333333 | H278: =+ROUND(F278*G278,2) -> 0.77
A279: 159 | B279: Sinapi | C279: S | D279: Adubo Orgânico Bovino | E279: m³ | F279: 0.0003 | G279: 164.99 | H279: =+ROUND(F279*G279,2) -> 0.05
A280: CT001 | B280: Cotação | C280: S | D280: Polímero Hidroabsorvente Agrícola | E280: kg | F280: =2/1000 -> 0.002 | G280: 50 | H280: =+ROUND(F280*G280,2) -> 0.1
A281: 6111 | B281: Sinapi | C281: I | D281: Servente | E281: h | F281: =560/120000 -> 0.004666666667 | G281: 6.56 | H281: =+ROUND(F281*G281,2) -> 0.03
A282: 25964 | B282: Sinapi | C282: I | D282: Jardineiro | E282: h | F282: =80/120000 -> 0.0006666666667 | G282: 8.47 | H282: =+ROUND(F282*G282,2) -> 0.01
D284: Total da Composição sem BDI | H284: =ROUND(SUM(H278:H282),2) -> 0.96
A297: 9
A302: SERVIÇO: | B302: EXECUÇÃO DAS OBRAS E SERVIÇOS RELATIVOS À RECUPERAÇÃO E ENRIQUECIMENTO DE ÁREAS DEGRADADAS DA ETAPA 1 DO PROJETO DE IRRIGAÇÃO SALITRE, EM JUAZEIRO, ESTADO DA BAHIA.
A303: LOCAL: | B303: 6ª Superintendência Regional
A304: MUNICÍPIOS: | B304: Juazeiro - BA
B306: ATUALIZAÇÃO DE PREÇO SINAPI (BRITA 1) | F306: Data Base SINAPI/BA: Agosto 2014
F307: Data Base SICRO/BA: Maio 2014
A308: Código | B308: Base
C309: Insumo/Serv. | D309: Descrição | E309: Unidade | F309: Quantidade | G309: Preço Unitário | H309: Preço Total
A310: CP010 | B310: 5652 - CONCRETO NAO ESTRUTURAL, CONSUMO 150KG/M3 | E310: m
H311: =+ROUND(F311*G311,2) -> 0
A312: 88316 | B312: Sinapi | C312: S | D312: SERVENTE COM ENCARGOS COMPLEMENTARES | E312: h | F312: 6 | G312: 11.25 | H312: 67.5
A313: 370 | B313: Sinapi | C313: I | D313: AREIA MEDIA - POSTO JAZIDA / FORNECEDOR (SEM FRETE) | E313: m³ | F313: 0.49 | G313: 56.42 | H313: 27.65
A314: 643 | B314: Sinapi | C314: I | D314: BETONEIRA 320L DIESEL 5,5HP S/ CARREGADOR MECANICO | E314: h | F314: 0.65 | G314: 3.24 | H314: 2.11
A315: 1379 | B315: Sinapi | C315: I | D315: CIMENTO PORTLAND COMPOSTO CP II-32 | E315: kg | F315: 150 | G315: 0.53 | H315: 79.5
A316: CT 005 | B316: COTAÇÃO 005 | C316: I | D316: Brita 1 (19 mm) | E316: M³ | F316: 0.98 | G316: 81.67 | H316: 80.04
A317: 72839 | B317: SINAPI | C317: S | D317: TRANSPORTE COMERCIAL COM CAMINHAO BASCULANTE 6 M3, RODOVIA EM LEITO NATURAL | E317: TXKM | F317: =1.4*30*F316 -> 41.16 | G317: 0.69 | H317: =+ROUND(F317*G317,2) -> 28.4
D319: Total da Composição sem BDI | H319: =ROUND(SUM(H311:H317),2) -> 285.2
A328: 10
A333: SERVIÇO: | B333: EXECUÇÃO DAS OBRAS E SERVIÇOS RELATIVOS À RECUPERAÇÃO E ENRIQUECIMENTO DE ÁREAS DEGRADADAS DA ETAPA 1 DO PROJETO DE IRRIGAÇÃO SALITRE, EM JUAZEIRO, ESTADO DA BAHIA.
A334: LOCAL: | B334: 6ª Superintendência Regional
A335: MUNICÍPIOS: | B335: Juazeiro - BA
B337: ATUALIZAÇÃO DE PREÇO SICRO 2 (BRITA 1) | F337: Data Base SINAPI/BA: Agosto 2014
F338: Data Base SICRO/BA: Maio 2014
A339: Código | B339: Base
C340: Insumo/Serv. | D340: Descrição | E340: Unidade | F340: Quantidade | G340: Preço Unitário | H340: Preço Total
A341: CP 011 | B341: 2 S 04 941 82 - Descida d'água cortes em degraus arm-DCD 02 AC/BC | E341: m³
A343: T501 | B343: SICRO 2 | C343: I | D343: Encarregado de turma | E343: H | F343: 1.01 | G343: 20.25 | H343: =+ROUND(F343*G343,2) -> 20.45
A344: - | B344: SICRO 2 | D344: Adc.M.O. - Ferramentas: ( 15,51 %) | E344: H | F344: 1 | G344: 3.17 | H344: 3.17
A345: 1 A 01 401 01 | B345: SICRO 2 | C345: I | D345: Forma comum de madeira | E345: M² | F345: 0.168 | G345: 61.8 | H345: 10.38
A346: CP 013 (1 A 01 415 51) | B346: SICRO 2 E COMPOSIÇÃO | C346: S | D346: Concr estr fck=15MPa c.raz uso ger conf/lanç AC/BC - Brita 1 a preço local | E346: M³ | F346: 0.168 | G346: =H403 -> 339.3299216 | H346: 57.01
A347: 1 A 01 580 02 | B347: SICRO 2 | C347: S | D347: Fornecimento, preparo e colocação formas aço CA 50 | E347: KG | F347: 6.16 | G347: 6.56 | H347: 40.41
A348: 1 A 01 890 01 | B348: SICRO 2 | C348: S | D348: Escavação manual em material de 1a categoria | E348: M³ | F348: 0.45 | G348: 26.84 | H348: 12.08
A349: 1 A 01 893 01 | B349: SICRO 2 | C349: S | D349: Compactação manual | E349: M³ | F349: 0.2 | G349: 9.97 | H349: 1.99
D352: Total da Composição sem BDI | H352: =SUM(H343:H349) -> 145.49
A360: 11
A365: SERVIÇO: | B365: EXECUÇÃO DAS OBRAS E SERVIÇOS RELATIVOS À RECUPERAÇÃO E ENRIQUECIMENTO DE ÁREAS DEGRADADAS DA ETAPA 1 DO PROJETO DE IRRIGAÇÃO SALITRE, EM JUAZEIRO, ESTADO DA BAHIA.
A366: LOCAL: | B366: 6ª Superintendência Regional
A367: MUNICÍPIOS: | B367: Juazeiro - BA
B369: ATUALIZAÇÃO DE PREÇO SICRO 2 (BRITA 1) | F369: Data Base SINAPI/BA: Agosto 2014
F370: Data Base SICRO/BA: Maio 2014
A371: CP 012 | B371: CÓDIGO: | C371: Concr estr fck=15MPa c.raz uso ger conf/lanç AC/BC | E371: Produção da Equipe: | G371: 2.5 | H371: UNIDADE:
B372: 1 A 01 415 51 | H372: m³
A373: A - EQUIPAMENTO
A374: CÓDIGO | B374: DESCRIÇÃO | C374: QUANT. | D374: UTILIZAÇÃO | F374: CUSTO OPERATIVO | H374: CUSTO HORÁRIO
D375: Operativa | E375: Improdutiva | F375: Operativo | G375: Improdutivo
A376: E302 | B376: Betoneira - 400 l (4 kW) | C376: 1 | D376: 1 | E376: 0 | F376: 13.08 | G376: 11.04 | H376: =F376*D376*C376+G376*E376*C376 -> 13.08
A377: E304 | B377: Transportador Manual - carrinho de mão 80 l | C377: 3 | D377: 0.69 | E377: 0.31 | F377: 0.14 | G377: 0 | H377: =F377*D377*C377+G377*E377*C377 -> 0.2898
A378: E306 | B378: Vibrador de Concreto - de imersão (2 kW) | C378: 2 | D378: 1 | E378: 0 | F378: 12.24 | G378: 11.04 | H378: =F378*D378*C378+G378*E378*C378 -> 24.48
A379: E509 | B379: Grupo Gerador - 32,0 KVA (29 kW) | C379: 1 | D379: 1 | E379: 0 | F379: 28.82 | G379: 11.04 | H379: =F379*D379*C379+G379*E379*C379 -> 28.82
A380: Custo Horário dos equipamentos | H380: =SUM(H376:H379) -> 66.6698
A381: B - MÃO-DE-OBRA SUPLEMENTAR
A382: CÓDIGO | B382: DESCRIÇÃO | F382: QUANT. | G382: SALÁRIO - HORA | H382: CUSTO HORÁRIO
A384: T701 | B384: Servente | F384: 14 | G384: 6.75 | H384: =F384*G384 -> 94.5
A385: T604 | B385: Pedreiro | F385: 1 | G385: 11.04 | H385: =F385*G385 -> 11.04
A386: Custo Horário da Mão-de-Obra | H386: =SUM(H384:H385) -> 105.54
A387: Adc.M.O. - Ferramentas: | G387: 20.51 | H387: =H386*G387% -> 21.646254
A388: Custo Horário de Execução | H388: =SUM(H386:H387)+H380 -> 193.856054
A389: Custo Unitário de Execução | H389: =(H388)/G371 -> 77.5424216
A390: 12
A391: C - MATERIAL
A392: CÓDIGO | B392: DESCRIÇÃO | F392: QUANT. | G392: PREÇO UNITÁRIO | H392: CUSTO HORÁRIO
A394: M202 | B394: Cimento asfáltico CP II-32 | F394: 270 | G394: 0.46 | H394: =F394*G394 -> 124.2
... 299 more rows

Sheet Composição do BDI
B1: MINISTÉRIO DA INTEGRAÇÃO NACIONAL
B2: COMPANHIA DE DESENVOLVIMENTO DOS VALES DO SÃO FRANCISCO E DO PARNAÍBA
B3: 6ª SUPERINTENDÊNCIA REGIONAL
A5: DETALHAMENTO DO BDI
A6: DOS SERVIÇOS
A8: ITEM | B8: DESCRIÇÕES DOS ITENS | D8: %
A11: 1 | B11: ADMINISTRAÇÃO CENTRAL ( AC ) | D11: 4.93
A12: 1.1 | B12: ESCRITÓRIO CENTRAL
A13: 1.2 | B13: VIAGENS
A14: 1.3 | B14: OUTROS
A16: 2 | B16: TRIBUTOS ( I ) | D16: =SUM(D17:D20) -> 8.15
A17: 2.1 | B17: ISS | D17: 2.5
A18: 2.2 | B18: PIS | D18: 0.65
A19: 2.3 | B19: Cofins | D19: 3
A20: 2.4 | B20: CPRB (Contribuição Previdenciária sobre a Receita Bruta) | D20: 2
A22: 3 | B22: TAXA DE RISCO ( R ) | D22: 1.74
A24: 4 | B24: SEGURO E GARANTIAS (S + G) | D24: 0.75
A26: 5 | B26: DESPESAS FINANCEIRAS ( F ) | D26: 1.17
A28: 6 | B28: LUCRO ( L ) | D28: 6.86
A30: BDI = | B30: (1+AC+R+S+G)*(1+DF)*(1+L) | C30: -1 ====================> | D30: =ROUND((((1+(D11+D22+D24)/100)*(1+(D26/100))*(1+(D28/100)))/((1-(D16/100)))-1),4) -> 0.2644
B31: (1-I)
B34: MINISTÉRIO DA INTEGRAÇÃO NACIONAL
B35: COMPANHIA DE DESENVOLVIMENTO DOS VALES DO SÃO FRANCISCO E DO PARNAÍBA
B36: 6ª SUPERINTENDÊNCIA REGIONAL
A38: DETALHAMENTO DO BDI
A39: DOS MATERIAIS
A41: ITEM | B41: DESCRIÇÕES DOS ITENS | D41: %
A44: 1 | B44: ADMINISTRAÇÃO CENTRAL ( AC ) | D44: 3
A45: 1.1 | B45: ESCRITÓRIO CENTRAL
A46: 1.2 | B46: VIAGENS
A47: 1.3 | B47: OUTROS
A49: 2 | B49: TRIBUTOS ( I ) | D49: =SUM(D50:D53) -> 5.65
A50: 2.1 | B50: ISS | D50: 0
A51: 2.2 | B51: PIS | D51: 0.65
A52: 2.3 | B52: Cofins | D52: 3
A53: 2.4 | B53: CPRB (Contribuição Previdenciária sobre a Receita Bruta) | D53: 2
A55: 3 | B55: TAXA DE RISCO ( R ) | D55: 0.85
A57: 4 | B57: SEGURO E GARANTIAS (S + G) | D57: 0.48
A59: 5 | B59: DESPESAS FINANCEIRAS ( F ) | D59: 0.85
A61: 6 | B61: LUCRO ( L ) | D61: 4.74
A63: BDI = | B63: (1+AC+R+S+G)*(1+DF)*(1+L) | C63: -1 ====================> | D63: =ROUND((((1+(D44+D55+D57)/100)*(1+(D59/100))*(1+(D61/100)))/((1-(D49/100)))-1),4) -> 0.168
B64: (1-I)

Sheet Cronograma
A1: CRONOGRAMA PRAD/PREV P. I. SALITRE - FÍSICO
A2: IT | B2: Descrição | C2: Valor total | D2: Duração | E2: Período
C3: R$ | D3: Meses | E3: Mês 1 | F3: Mês 2 | G3: Mês 3 | H3: Mês 4 | I3: Mês 5 | J3: Mês 6 | K3: Mês 7 | L3: Mês 8 | M3: Mês 9 | N3: Mês 10 | O3: Mês 11 | P3: Mês 12 | Q3: Mês 13 | R3: Mês 14 | S3: Mês 15 | T3: Mês 16 | U3: Mês 17 | V3: Mês 18
A4: 1 | B4: Administração Local | C4: =ORÇAMENTO!I8 -> 185601.28 | D4: 14 | E4: =E51 -> 0.004435607917 | F4: =F51 -> 0.1645740535 | G4: 0.1596015844 | H4: 0.2358660121 | I4: 0.2118635092 | J4: 0.2017140085 | K4: 0.007474603024 | L4: 0.001290347376 | M4: 0.004339492427 | N4: 0.001290347376 | O4: 0.001290347376 | P4: 0.0006006264 | T4: 0.003049145051 | V4: 0.002610315323
A5: 2 | B5: Mobilização de pessoal e equipamentos | C5: =ORÇAMENTO!I9 -> 7767.21 | D5: 1 | E5: =1/$D5 -> 1
A6: 3 | B6: Desmobilização de pessoal e equipamentos | C6: =ORÇAMENTO!I10 -> 7767.21 | D6: 1 | V6: =1/$D6 -> 1
A7: 4 | B7: Instalação do Canteiro de Obras | C7: =ORÇAMENTO!I11 -> 10691.1 | D7: 2 | E7: =1/$D7 -> 0.5 | F7: 0.5
A8: 5 | B8: Condução e monitoramento do processo de recuperação das áreas degradadas | C8: =ORÇAMENTO!I12 -> 18570.8 | D8: 8 | F8: 0.125 | G8: 0.125 | H8: 0.125 | I8: 0.125 | J8: 0.125 | K8: 0.125 | P8: =1/$D8 -> 0.125 | V8: =1/$D8 -> 0.125
A9: 6 | B9: Fornecimento de veículo 4x4, com ar condicionado para apoio à fiscalização, incl. combustível, óleo, manutenção, licenciamento e seguros | C9: =ORÇAMENTO!I13 -> 37431.6 | D9: 6 | F9: 0.1666666667 | G9: 0.1666666667 | H9: 0.1666666667 | I9: 0.1666666667 | J9: 0.1666666667 | K9: 0.1666666667
A10: 7 | B10: PLACAS DE OBRA EM CHAPA DE ACO GALVANIZADO | C10: =ORÇAMENTO!I14 -> 4030.34 | D10: 1 | E10: 1
A11: 8 | B11: Placas de identificação de espécies e educação ambiental (Forn. e implantação placa sinaliz. semi-refletiva) | C11: =ORÇAMENTO!I15 -> 20908.4 | D11: 3 | I11: 0.3333333333 | J11: 0.3333333333 | K11: 0.3333333333
A12: 9 | B12: DESMATAMENTO E LIMPEZA MECANIZADA DE TERRENO COM ALGAROBEIRAS ATE Ø 15CM | C12: =ORÇAMENTO!I16 -> 153640 | D12: 2 | F12: 0.5 | G12: 0.5
A13: 10 | B13: Destocamento de árvores c/ diâm. 0,15 a 030m | C13: =ORÇAMENTO!I17 -> 34839 | D13: 1 | F13: 1
A14: 11 | B14: Construção de Paliçadas com resíduos de algarobeiras para prevenção e controle de processos erosivos em drenagens | C14: =ORÇAMENTO!I18 -> 1792.8 | D14: 3 | G14: 0.3333333333 | H14: 0.3333333333 | I14: 0.3333333333
A15: 12 | B15: Construção de dissipadores hidráulicos para prevenção e controle de processos erosivos (ENROCAMENTO DE PEDRA ARRUMADA) | C15: =ORÇAMENTO!I19 -> 22147.56 | D15: 3 | G15: 0.3333333333 | H15: 0.3333333333 | I15: 0.3333333333
A16: 13 | B16: Fornecimento e construção de cerca com onze fios de arame farpado e mourões de concreto seção quadrada a cada 7,5 m | C16: =ORÇAMENTO!I20 -> 1469650 | D16: 5 | F16: 0.2 | G16: 0.2 | H16: 0.2 | I16: 0.2 | J16: 0.2
A17: 14 | B17: DESCOMPACTAÇÃO DE SOLOS (ESCAVACAO E TRANSPORTE DE MATERIAL DE 2A CAT DMT 50M COM TRATOR SOBRE ESTEIRAS 305 HP COM LAMINA E ESCARIFICADOR) | C17: =ORÇAMENTO!I21 -> 312312 | D17: 5 | F17: 0.2 | G17: 0.2 | H17: 0.2 | I17: 0.2 | J17: 0.2
A18: 15 | B18: Gradeamento de Solos descompactados | C18: =ORÇAMENTO!I22 -> 64680 | D18: 5 | F18: 0.2 | G18: 0.2 | H18: 0.2 | I18: 0.2 | J18: 0.2
A19: 16 | B19: Abertura de trincheira em material de 2a categoria (ESCAVACAO MECANICA DE VALA EM MATERIAL DE 2A. CATEGORIA ATE 2 M DE PROFUNDIDADE COM UTILIZACAO DE ESCAVADEIRA HIDRAULICA) | C19: =ORÇAMENTO!I23 -> 2153.38 | D19: 1 | G19: 1
A20: 17 | B20: Reposição de Topsoil (escavação, carga, transporte mat 1a cat com DMT até 1000 m.) | C20: =ORÇAMENTO!I24 -> 50410.8 | D20: 5 | F20: 0.2 | G20: 0.2 | H20: 0.2 | I20: 0.2 | J20: 0.2
A21: 18 | B21: Transporte local em rodovia não pavimentada | C21: =ORÇAMENTO!I25 -> 30848.4 | D21: 5 | F21: 0.2 | G21: 0.2 | H21: 0.2 | I21: 0.2 | J21: 0.2
A22: 19 | B22: Plantio de espécies nativas arbustivas, herbáceas e rasteiras (de acordo com as especificações de projeto) | C22: =ORÇAMENTO!I26 -> 966068.44 | D22: 3 | H22: 0.3333333333 | I22: 0.3333333333 | J22: 0.3333333333
A23: 20 | B23: Transporte de água e Irrigação de mudas nativas arbustivas, herbáceas e rasteiras com carro pipa durante 8 meses, 1 vez a cada 14 dias | C23: =ORÇAMENTO!I27 -> 39896.32 | D23: 8 | H23: =1/$D23 -> 0.125 | I23: 0.125 | J23: 0.125 | K23: 0.125 | L23: 0.125 | M23: 0.125 | N23: 0.125 | O23: 0.125
A24: 21 | B24: Manutenção de mudas de espécies nativas arbóreas ou arbustivas, de acordo com especificações de projeto (CAPINA E LIMPEZA MANUAL DE TERRENO) | C24: =ORÇAMENTO!I28 -> 23569.17 | D24: 2 | M24: =1/$D24 -> 0.5 | T24: =1/$D24 -> 0.5
A25: 22 | B25: Recomposição do Banco de Sementes nativas do solo nas áreas a serem recuperadas ou enriquecidas | C25: =ORÇAMENTO!I29 -> 7905 | D25: 3 | H25: =1/$D25 -> 0.3333333333 | I25: 0.3333333333 | J25: 0.3333333333
A26: 23 | B26: Fornecimento e instalação de portão em aço galvanizado (PORTAO PARA VEICULOS EM BARRAS DE FERRO RETANGULAR CHATA E TELA DE ARAME GALVANIZADO, FIO 8 BWG, MALHA QUADRADA 5X5CM, INCLUSIVE CADEADO E PINTURA PVA EM PILARES DE APOIO DE CONCRETO) | C26: =ORÇAMENTO!I30 -> 37087.08 | D26: 5 | F26: =1/$D26 -> 0.2 | G26: =1/$D26 -> 0.2 | H26: 0.2 | I26: 0.2 | J26: 0.2
A27: 24 | B27: LOCAÇÃO DE ALINHAMENTOS, UTILIZANDO EQUIPE DE TOPOGRAFIA COM PESSOAL E EQUIPAMENTOS | C27: =ORÇAMENTO!I31 -> 55426.8 | D27: 5 | F27: =1/$D27 -> 0.2 | G27: =1/$D27 -> 0.2 | H27: 0.2 | I27: 0.2 | J27: 0.2
A28: 25 | B28: Enrocamento saída DPP1 Margem do rio São Francisco (ENROCAMENTO MANUAL, COM ARRUMACAO DO MATERIAL ) | C28: =ORÇAMENTO!I32 -> 9228.15 | D28: 1 | H28: =1/$D28 -> 1
A29: 26 | B29: PAVIMENTACAO EM PARALELEPIPEDO SOBRE COLCHAO DE AREIA 10CM, REJUNTADO COM AREIA | C29: =ORÇAMENTO!I33 -> 8372 | D29: 1 | K29: =1/$D29 -> 1
A30: 27 | B30: Espalhamento de Bota-fora 1a Cat. Depositado na margem direita do trecho final do dreno principal (ESPALHAMENTO DE MATERIAL DE 1A CATEGORIA COM TRATOR DE ESTEIRA COM 153 HP) | C30: =ORÇAMENTO!I34 -> 17262 | D30: 2 | F30: =1/$D30 -> 0.5 | G30: =1/$D30 -> 0.5
A31: 28 | B31: ESCAVACAO MECANICA PARA ACERTO DE TALUDES, EM MATERIAL DE 1A CATEGORIA, COM ESCAVADEIRA HIDRAULICA (Em trecho de 300 m do trecho final do dreno principal) | C31: =ORÇAMENTO!I35 -> 4165.92 | D31: 1 | G31: =1/$D31 -> 1
A32: 29 | B32: Fornecimento e plantio de vetiver em mudas | C32: =ORÇAMENTO!I36 -> 54450 | D32: 2 | H32: =1/$D32 -> 0.5 | I32: =1/$D32 -> 0.5
A33: 30 | B33: ESCAVACAO DE VALA EM MATERIAL 1A CATEGORIA , PROFUNDIDADE ATE 1,5 M para construção de canaletas de proteção de taludes | C33: =ORÇAMENTO!I37 -> 383.2 | D33: 1 | H33: =1/$D33 -> 1
A34: 31 | B34: REGULARIZACAO E COMPACTACAO MANUAL DE TERRENO COM SOQUETE para construção de canaletas de proteção de taludes | C34: =ORÇAMENTO!I38 -> 2799.93 | D34: 1 | H34: 1
A35: 32 | B35: CONCRETO FCK=15MPA (1:2,5:3) , INCLUIDO PREPARO MECANICO, LANCAMENTO E ADENSAMENTO para construção de canaletas de proteção de taludes | C35: =ORÇAMENTO!I39 -> 26240.28 | D35: 1 | H35: 1
A36: 33 | B36: DESCIDA D'ÁGUA CORTES EM DEGRAUS ARM-DCD 02 AC/BC | C36: =ORÇAMENTO!I40 -> 3863.16 | D36: 1 | H36: 1
A37: 34 | B37: DISSIPADOR DE ENERGIA - DEB 01 | C37: =ORÇAMENTO!I41 -> 1673.58 | D37: 1 | H37: 1
A38: 35 | B38: ESCAVACAO, CARGA E TRANSPORTE DE MATERIAL DE 1A CATEGORIA COM TRATOR SOBRE ESTEIRAS 305 HP E CACAMBA 5M3, DMT 50 A 200M | C38: =ORÇAMENTO!I42 -> 2018.25 | D38: 2 | G38: =1/$D38 -> 0.5 | H38: 0.5
A39: 36 | B39: REATERRO APILOADO EM CAMADAS 0,20M, UTILIZANDO MATERIAL ARGILO-ARENOSO ADQUIRIDO EM JAZIDA, JÁ CONSIDERANDO UM ACRÉSCIMO DE 25% NO VOLUME DO MATERIAL ADQUIRIDO, NÃO CONSIDERANDO O TRANSPORTE ATÉ O REATERRO | C39: =ORÇAMENTO!I43 -> 18547.2 | D39: 1 | H39: 1
A40: 37 | B40: Transporte local em rodovia não pavimentada | C40: =ORÇAMENTO!I44 -> 11316 | D40: 2 | G40: =1/$D40 -> 0.5 | H40: 0.5
A41: 38 | B41: ENROCAMENTO MANUAL, COM ARRUMACAO DO MATERIAL | C41: =ORÇAMENTO!I45 -> 8612.94 | D41: 1 | H41: 1
A42: 39 | B42: REGULARIZACAO E COMPACTACAO MANUAL DE TALUDE COM SOLO-CIMENTO 6% | C42: =ORÇAMENTO!I46 -> 10209.36 | D42: 1 | H42: 1
A43: 40 | B43: FORNECIMENTO E APLICAÇÃO DE CONCRETO FCK = 20 MPA NOS TALUDES DO DRENO | C43: =ORÇAMENTO!I47 -> 7561.18 | D43: 1 | H43: 1
A44: 41 | B44: ESCAVACAO MECANICA CAMPO ABERTO EM SOLO EXCETO ROCHA ATE 2,00M PROFUNDIDADE PARA CONSTRUÇÃO DE MICROBACIAS DE RETENÇÃO EM ESTRADAS DIVERSAS | C44: =ORÇAMENTO!I48 -> 12070 | D44: 1 | I44: =1/$D44 -> 1
A45: 42 | B45: ESPALHAMENTO E COMPACTAÇÃO DE MATERIAL DE 1A CATEGORIA COM TRATOR DE ESTEIRA COM 153 HP PARA CONSTRUÇÃO DE MICROBACIAS DE RETENÇÃO EM ESTRADAS DIVERSAS | C45: =ORÇAMENTO!I49 -> 11645 | D45: 1 | I45: =1/$D45 -> 1
A46: 43 | B46: LIMPEZA MANUAL GERAL COM REMOCAO DE COBERTURA VEGETAL PARA IMPLANTAÇÃO DE TRILHAS ECOLÓGICAS | C46: =ORÇAMENTO!I50 -> 21300 | D46: 2 | I46: =1/$D46 -> 0.5 | J46: =1/$D46 -> 0.5
A47: 44 | B47: LIMPEZA MECANIZADA DE TERRENO COM REMOCAO DE CAMADA VEGETAL, UTILIZANDO TRATOR DE ESTEIRAS PARA LIMPEZA DO ACEIRO DA RESERVA LEGAL | C47: =ORÇAMENTO!I51 -> 19693.5 | D47: 1 | J47: =1/$D47 -> 1
A48: 45 | B48: CONSTRUÇÃO DO SISTEMA DE DRENAGEM PLUVIAL DA PARTE FRONTAL DA ADMINISTRAÇÃO DA ETAPA 1 DO PROJETO SALITRE | C48: =SUM(ORÇAMENTO!I53:I61) -> 118931.08 | D48: 2 | F48: =1/$D48 -> 0.5 | G48: =1/$D48 -> 0.5
A49: 46 | B49: CONSTRUÇÃO DE GALPÃO DE TRANSBORDO PARA EMBALAGENS DE AGROTÓXICO, MODELO ACAVASF | C49: =SUM(ORÇAMENTO!I63:I87) -> 114945.59 | D49: 3 | F49: =1/$D49 -> 0.3333333333 | G49: =1/$D49 -> 0.3333333333 | H49: =1/$D49 -> 0.3333333333
A50: Avanço Físico/ Financeiro Estimado | C50: Total | D50: Total | E50: Mês 1 | F50: Mês 2 | G50: Mês 3 | H50: Mês 4 | I50: Mês 5 | J50: Mês 6 | K50: Mês 7 | L50: Mês 8 | M50: Mês 9 | N50: Mês 10 | O50: Mês 11 | P50: Mês 12 | Q50: Mês 13 | R50: Mês 14 | S50: Mês 15 | T50: Mês 16 | U50: Mês 17 | V50: Mês 18
C51: =SUM(C4:C49) -> 4050483.01 | D51: =SUM(E51:V51) -> 1 | E51: =E107/$D$107 -> 0.004435607917 | F51: =F107/$D$107 -> 0.1645740535 | G51: 0.1596015844 | H51: 0.2358660121 | I51: 0.2118635092 | J51: 0.2017140085 | K51: 0.007474603024 | L51: 0.001290347376 | M51: 0.004339492427 | N51: 0.001290347376 | O51: 0.001290347376 | P51: 0.0006006264 | Q51: 0 | R51: 0 | S51: 0 | T51: 0.003049145051 | U51: 0 | V51: 0.002610315323
C52: Acumulado ---> | E52: =E51 -> 0.004435607917 | F52: =E52+F51 -> 0.1690096614 | G52: =F52+G51 -> 0.3286112458 | H52: 0.564477258 | I52: 0.7763407672 | J52: 0.9780547756 | K52: 0.9855293787 | L52: 0.986819726 | M52: 0.9911592185 | N52: 0.9924495658 | O52: 0.9937399132 | P52: 0.9943405396 | Q52: 0.9943405396 | R52: 0.9943405396 | S52: 0.9943405396 | T52: 0.9973896847 | U52: 0.9973896847 | V52: 1
A57: CRONOGRAMA PRAD/PREV P. I. SALITRE - FINANCEIRO
A58: IT | B58: Descrição | C58: Valor total | D58: Duração | E58: Período
C59: R$ | D59: Meses | E59: Mês 1 | F59: Mês 2 | G59: Mês 3 | H59: Mês 4 | I59: Mês 5 | J59: Mês 6 | K59: Mês 7 | L59: Mês 8 | M59: Mês 9 | N59: Mês 10 | O59: Mês 11 | P59: Mês 12 | Q59: Mês 13 | R59: Mês 14 | S59: Mês 15 | T59: Mês 16 | U59: Mês 17 | V59: Mês 18
A60: 1 | B60: Administração Local | C60: =C4 -> 185601.28 | D60: 14 | E60: =$C$4*E109 -> 823.254507 | F60: =$C$4*F109 -> 30545.15499 | G60: =$C$4*G109 -> 29622.25836 | H60: 43777.03376 | I60: 39322.13849 | J60: 37438.37816 | K60: 1387.295889 | L60: 239.4901247 | M60: 805.4153491 | N60: 239.4901247 | O60: 239.4901247 | P60: 111.4770286 | T60: 565.9252244
A61: 2 | B61: Mobilização de pessoal e equipamentos | C61: 7767.21 | D61: 1 | E61: =$C61*E5 -> 7767.21
A62: 3 | B62: Desmobilização de pessoal e equipamentos | C62: 7767.21 | D62: 1 | V62: =$C62*V6 -> 7767.21
A63: 4 | B63: Instalação do Canteiro de Obras | C63: 10691.1 | D63: 2 | E63: =$C63*E7 -> 5345.55 | F63: =$C63*F7 -> 5345.55
A64: 5 | B64: Condução e monitoramento do processo de recuperação das áreas degradadas | C64: 18570.8 | D64: 8 | F64: =$C64*F8 -> 2321.35 | G64: 2321.35 | H64: 2321.35 | I64: 2321.35 | J64: 2321.35 | K64: 2321.35 | P64: =$C64*P8 -> 2321.35 | V64: =$C64*V8 -> 2321.35
A65: 6 | B65: Fornecimento de veículo 4x4, com ar condicionado para apoio à fiscalização, incl. combustível, óleo, manutenção, licenciamento e seguros | C65: =C9 -> 37431.6 | D65: 6 | F65: 6238.6 | G65: 6238.6 | H65: 6238.6 | I65: 6238.6 | J65: 6238.6 | K65: 6238.6
A66: 7 | B66: PLACAS DE OBRA EM CHAPA DE ACO GALVANIZADO | C66: 4030.34 | D66: 1 | E66: =$C66*E10 -> 4030.34
A67: 8 | B67: Placas de identificação de espécies e educação ambiental (Forn. e implantação placa sinaliz. semi-refletiva) | C67: 20908.4 | D67: 3 | I67: =$C67*I11 -> 6969.466667 | J67: =$C67*J11 -> 6969.466667 | K67: =$C67*K11 -> 6969.466667
A68: 9 | B68: DESMATAMENTO E LIMPEZA MECANIZADA DE TERRENO COM ALGAROBEIRAS ATE Ø 15CM | C68: 153640 | D68: 2 | F68: =$C68*F12 -> 76820 | G68: =$C68*G12 -> 76820
A69: 10 | B69: Destocamento de árvores c/ diâm. 0,15 a 030m | C69: 34839 | D69: 1 | F69: =$C69*F13 -> 34839
A70: 11 | B70: Construção de Paliçadas com resíduos de algarobeiras para prevenção e controle de processos erosivos em drenagens | C70: 1792.8 | D70: 3 | G70: =$C70*G14 -> 597.6 | H70: 597.6 | I70: 597.6
A71: 12 | B71: Construção de dissipadores hidráulicos para prevenção e controle de processos erosivos (ENROCAMENTO DE PEDRA ARRUMADA) | C71: 22147.56 | D71: 3 | G71: 7382.52 | H71: 7382.52 | I71: 7382.52
A72: 13 | B72: Fornecimento e construção de cerca com onze fios de arame farpado e mourões de concreto seção quadrada a cada 7,5 m | C72: 1469650 | D72: 5 | F72: =$C72*F16 -> 293930 | G72: 293930 | H72: 293930 | I72: 293930 | J72: =$C72*J16 -> 293930
A73: 14 | B73: DESCOMPACTAÇÃO DE SOLOS (ESCAVACAO E TRANSPORTE DE MATERIAL DE 2A CAT DMT 50M COM TRATOR SOBRE ESTEIRAS 305 HP COM LAMINA E ESCARIFICADOR) | C73: 312312 | D73: 5 | F73: =$C73*F17 -> 62462.4 | G73: 62462.4 | H73: 62462.4 | I73: 62462.4 | J73: =$C73*J17 -> 62462.4
A74: 15 | B74: Gradeamento de Solos descompactados | C74: 64680 | D74: 5 | F74: =$C74*F18 -> 12936 | G74: 12936 | H74: 12936 | I74: 12936 | J74: =$C74*J18 -> 12936
A75: 16 | B75: Abertura de trincheira em material de 2a categoria (ESCAVACAO MECANICA DE VALA EM MATERIAL DE 2A. CATEGORIA ATE 2 M DE PROFUNDIDADE COM UTILIZACAO DE ESCAVADEIRA HIDRAULICA) | C75: 2153.38 | D75: 1 | G75: =$C75*G19 -> 2153.38
A76: 17 | B76: Reposição de Topsoil (escavação, carga, transporte mat 1a cat com DMT até 1000 m.) | C76: 50410.8 | D76: 5 | F76: =$C76*F20 -> 10082.16 | G76: =$C76*G20 -> 10082.16 | H76: =$C76*H20 -> 10082.16 | I76: 10082.16 | J76: 10082.16
A77: 18 | B77: Transporte local em rodovia não pavimentada | C77: 30848.4 | D77: 5 | F77: =$C77*F21 -> 6169.68 | G77: =$C77*G21 -> 6169.68 | H77: 6169.68 | I77: 6169.68 | J77: 6169.68
A78: 19 | B78: Plantio de espécies nativas arbustivas, herbáceas e rasteiras (de acordo com as especificações de projeto) | C78: 966068.44 | D78: 3 | H78: 322022.8133 | I78: 322022.8133 | J78: 322022.8133
A79: 20 | B79: Transporte de água e Irrigação de mudas nativas arbustivas, herbáceas e rasteiras com carro pipa durante 8 meses, 1 vez a cada 14 dias | C79: 39896.32 | D79: 8 | H79: 4987.04 | I79: 4987.04 | J79: 4987.04 | K79: =$C79*K23 -> 4987.04 | L79: =$C79*L23 -> 4987.04 | M79: =$C79*M23 -> 4987.04 | N79: =$C79*N23 -> 4987.04 | O79: =$C79*O23 -> 4987.04
A80: 21 | B80: Manutenção de mudas de espécies nativas arbóreas ou arbustivas, de acordo com especificações de projeto (CAPINA E LIMPEZA MANUAL DE TERRENO) | C80: 23569.17 | D80: 2 | M80: =$C80*M24 -> 11784.585 | T80: =$C80*T24 -> 11784.585
A81: 22 | B81: Recomposição do Banco de Sementes nativas do solo nas áreas a serem recuperadas ou enriquecidas | C81: 7905 | D81: 3 | H81: =$C81*H25 -> 2635 | I81: 2635 | J81: 2635
A82: 23 | B82: Fornecimento e instalação de portão em aço galvanizado (PORTAO PARA VEICULOS EM BARRAS DE FERRO RETANGULAR CHATA E TELA DE ARAME GALVANIZADO, FIO 8 BWG, MALHA QUADRADA 5X5CM, INCLUSIVE CADEADO E PINTURA PVA EM PILARES DE APOIO DE CONCRETO) | C82: 37087.08 | D82: 5 | F82: =$C82*F26 -> 7417.416 | G82: =$C82*G26 -> 7417.416 | H82: 7417.416 | I82: 7417.416 | J82: 7417.416
A83: 24 | B83: LOCAÇÃO DE ALINHAMENTOS, UTILIZANDO EQUIPE DE TOPOGRAFIA COM PESSOAL E EQUIPAMENTOS | C83: 55426.8 | D83: 5 | F83: =$C83*F27 -> 11085.36 | G83: =$C83*G27 -> 11085.36 | H83: 11085.36 | I83: 11085.36 | J83: 11085.36
A84: 25 | B84: Enrocamento saída DPP1 Margem do rio São Francisco (ENROCAMENTO MANUAL, COM ARRUMACAO DO MATERIAL ) | C84: 9228.15 | D84: 1 | H84: =$C84*H28 -> 9228.15
A85: 26 | B85: PAVIMENTACAO EM PARALELEPIPEDO SOBRE COLCHAO DE AREIA 10CM, REJUNTADO COM AREIA | C85: 8372 | D85: 1 | K85: =$C85*K29 -> 8372
A86: 27 | B86: Espalhamento de Bota-fora 1a Cat. Depositado na margem direita do trecho final do dreno principal (ESPALHAMENTO DE MATERIAL DE 1A CATEGORIA COM TRATOR DE ESTEIRA COM 153 HP) | C86: 17262 | D86: 2 | F86: =$C86*F30 -> 8631 | G86: =$C86*G30 -> 8631
A87: 28 | B87: ESCAVACAO MECANICA PARA ACERTO DE TALUDES, EM MATERIAL DE 1A CATEGORIA, COM ESCAVADEIRA HIDRAULICA (Em trecho de 300 m do trecho final do dreno principal) | C87: 4165.92 | D87: 1 | G87: =$C87*G31 -> 4165.92
A88: 29 | B88: Fornecimento e plantio de vetiver em mudas | C88: 54450 | D88: 2 | H88: =$C88*H32 -> 27225 | I88: =$C88*I32 -> 27225
A89: 30 | B89: ESCAVACAO DE VALA EM MATERIAL 1A CATEGORIA , PROFUNDIDADE ATE 1,5 M para construção de canaletas de proteção de taludes | C89: =C33 -> 383.2 | D89: =D33 -> 1 | H89: =$C89*H33 -> 383.2
A90: 31 | B90: REGULARIZACAO E COMPACTACAO MANUAL DE TERRENO COM SOQUETE para construção de canaletas de proteção de taludes | C90: =C34 -> 2799.93 | D90: 1 | H90: 2799.93
A91: 32 | B91: CONCRETO FCK=15MPA (1:2,5:3) , INCLUIDO PREPARO MECANICO, LANCAMENTO E ADENSAMENTO para construção de canaletas de proteção de taludes | C91: =C35 -> 26240.28 | D91: 1 | H91: 26240.28
A92: 33 | B92: DESCIDA D'ÁGUA CORTES EM DEGRAUS ARM-DCD 02 AC/BC | C92: =C36 -> 3863.16 | D92: 1 | H92: 3863.16
A93: 34 | B93: DISSIPADOR DE ENERGIA - DEB 01 | C93: 1673.58 | D93: 1 | H93: 1673.58
A94: 35 | B94: ESCAVACAO, CARGA E TRANSPORTE DE MATERIAL DE 1A CATEGORIA COM TRATOR SOBRE ESTEIRAS 305 HP E CACAMBA 5M3, DMT 50 A 200M | C94: 2018.25 | D94: 2 | G94: =$C94*G38 -> 1009.125 | H94: 1009.125
A95: 36 | B95: REATERRO APILOADO EM CAMADAS 0,20M, UTILIZANDO MATERIAL ARGILO-ARENOSO ADQUIRIDO EM JAZIDA, JÁ CONSIDERANDO UM ACRÉSCIMO DE 25% NO VOLUME DO MATERIAL ADQUIRIDO, NÃO CONSIDERANDO O TRANSPORTE ATÉ O REATERRO | C95: 18547.2 | D95: 1 | H95: 18547.2
A96: 37 | B96: Transporte local em rodovia não pavimentada | C96: 11316 | D96: 2 | G96: =$C96*G40 -> 5658 | H96: 5658
A97: 38 | B97: ENROCAMENTO MANUAL, COM ARRUMACAO DO MATERIAL | C97: 8612.94 | D97: 1 | H97: 8612.94
A98: 39 | B98: REGULARIZACAO E COMPACTACAO MANUAL DE TALUDE COM SOLO-CIMENTO 6% | C98: 10209.36 | D98: 1 | H98: 10209.36
A99: 40 | B99: FORNECIMENTO E APLICAÇÃO DE CONCRETO FCK = 20 MPA NOS TALUDES DO DRENO | C99: 7561.18 | D99: 1 | H99: 7561.18
A100: 41 | B100: ESCAVACAO MECANICA CAMPO ABERTO EM SOLO EXCETO ROCHA ATE 2,00M PROFUNDIDADE PARA CONSTRUÇÃO DE MICROBACIAS DE RETENÇÃO EM ESTRADAS DIVERSAS | C100: 12070 | D100: 1 | I100: =$C100*I44 -> 12070
A101: 42 | B101: ESPALHAMENTO E COMPACTAÇÃO DE MATERIAL DE 1A CATEGORIA COM TRATOR DE ESTEIRA COM 153 HP PARA CONSTRUÇÃO DE MICROBACIAS DE RETENÇÃO EM ESTRADAS DIVERSAS | C101: 11645 | D101: 1 | I101: =$C101*I45 -> 11645
A102: 43 | B102: LIMPEZA MANUAL GERAL COM REMOCAO DE COBERTURA VEGETAL PARA IMPLANTAÇÃO DE TRILHAS ECOLÓGICAS | C102: 21300 | D102: 2 | I102: =$C102*I46 -> 10650 | J102: =$C102*J46 -> 10650
A103: 44 | B103: LIMPEZA MECANIZADA DE TERRENO COM REMOCAO DE CAMADA VEGETAL, UTILIZANDO TRATOR DE ESTEIRAS PARA LIMPEZA DO ACEIRO DA RESERVA LEGAL | C103: 19693.5 | D103: 1 | J103: =$C103*J47 -> 19693.5
A104: 45 | B104: CONSTRUÇÃO DO SISTEMA DE DRENAGEM PLUVIAL DA PARTE FRONTAL DA ADMINISTRAÇÃO DA ETAPA 1 DO PROJETO SALITRE | C104: 118931.08 | D104: 2 | F104: =$C104*F48 -> 59465.54 | G104: =$C104*G48 -> 59465.54
A105: 46 | B105: CONSTRUÇÃO DE GALPÃO DE TRANSBORDO PARA EMBALAGENS DE AGROTÓXICO, MODELO ACAVASF | C105: =C49 -> 114945.59 | D105: 3 | F105: =$C105*F49 -> 38315.19667 | G105: =$C105*G49 -> 38315.19667 | H105: =$C105*H49 -> 38315.19667
D106: Total | E106: Mês 1 | F106: Mês 2 | G106: Mês 3 | H106: Mês 4 | I106: Mês 5 | J106: Mês 6 | K106: Mês 7 | L106: Mês 8 | M106: Mês 9 | N106: Mês 10 | O106: Mês 11 | P106: Mês 12 | Q106: Mês 13 | R106: Mês 14 | S106: Mês 15 | T106: Mês 16 | U106: Mês 17 | V106: Mês 18
A107: Desembolso mensal | C107: Geral | D107: =SUM(E107:V107) -> 3864881.73 | E107: =SUM(E61:E105) -> 17143.1 | F107: 636059.2527 | G107: 616841.2477 | H107: 911594.241 | I107: 818827.406 | J107: 779600.786 | K107: 28888.45667 | L107: 4987.04 | M107: 16771.625 | N107: 4987.04 | O107: 4987.04 | P107: 2321.35 | Q107: 0 | R107: 0 | S107: 0 | T107: 11784.585 | U107: 0 | V107: =SUM(V61:V105) -> 10088.56
C108: ADM Local | D108: =SUM(E108:V108) -> 185601.28 | E108: =$C$60*E109 -> 823.254507 | F108: =$C$60*F109 -> 30545.15499 | G108: =$C$60*G109 -> 29622.25836 | H108: 43777.03376 | I108: 39322.13849 | J108: 37438.37816 | K108: 1387.295889 | L108: 239.4901247 | M108: 805.4153491 | N108: 239.4901247 | O108: 239.4901247 | P108: 111.4770286 | Q108: 0 | R108: 0 | S108: 0 | T108: 565.9252244 | U108: 0 | V108: 484.4778651
C109: Percentual | D109: =SUM(E109:V109) -> 1 | E109: =E107/$D$107 -> 0.004435607917 | F109: =F107/$D$107 -> 0.1645740535 | G109: 0.1596015844 | H109: 0.2358660121 | I109: 0.2118635092 | J109: 0.2017140085 | K109: 0.007474603024 | L109: 0.001290347376 | M109: 0.004339492427 | N109: 0.001290347376 | O109: 0.001290347376 | P109: 0.0006006264 | Q109: 0 | R109: 0 | S109: 0 | T109: 0.003049145051 | U109: 0 | V109: 0.002610315323
A110: Desembolso Total | C110: =SUM(D107:D108) -> 4050483.01

Sheet Quantificação
C1: Código | D1: S001 | E1: S002 | F1: S003 | G1: S004 | H1: S005 | I1: S006 | J1: S007 | K1: S008 | L1: S009 | M1: S010 | N1: S011 | O1: S012 | P1: S013 | Q1: S014 | R1: S015 | S1: S016 | T1: S017 | U1: S018 | V1: S019 | W1: S020 | X1: S021 | Y1: S022 | Z1: S023 | AA1: S024 | AB1: S025 | AC1: S026 | AD1: S027 | AE1: S028 | AF1: S029 | AG1: S030
A2: Local | B2: Área (ha) | C2: Serviços | D2: Corte, destoca e remoção de resíduos de algarobeiras em áreas severamente ou moderadamente afetadas | E2: Corte e destoca de algarobeiras em áreas brandamente afetadas | F2: Construção de Paliçadas para prevenção e controle de processos erosivos em drenagens | G2: Construção de dissipadores hidráulicos para prevenção e controle de processos erosivos em drenagens | H2: Fornecimento e construção de cerca com onze fios de arame farpado e mourões de concreto seção quadrada a cada 7,5 m | I2: Descompactação de solos e arrumação em nível | J2: Abertura de trincheira em material rochoso | K2: Reposição de Topsoil | L2: Plantio de espécies nativas | M2: Transporte de água e Irrigação de mudas nativas arbustivas, herbáceas e rasteiras com carro pipa durante 8 meses, 1 vez a cada 14 dias (DMT = 1 km; 15 L por muda; ) | N2: Manutenção de mudas de especies nativas arbóreas ou arbustivas | O2: Recomposição do Banco de Sementes | P2: Fornecimento e instalação de Placas de identificação de espécies vegetais (25x16 cm) | Q2: Fornecimento e instalação de Placa de Obra/ divulgação (4,608 m²) | R2: Fornecimento e instalação de portão em aço galvanizado | S2: Fornecimento e instalação de Placas de advertência e educação ambiental (0,576 m²) | T2: Locação de alinhamentos, utilizando equipe de topografia com pessoal e equipamentos | U2: Enrocamento saída DPP1 Margem do rio São Francisco | V2: Administração Local da Obra | W2: Espalhamento de Bota-fora 1a Cat. | X2: Recobrimento e Estabilização de Taludes de Dreno com Plantio de Vetiver | Y2: Mobilização e Desmobilização de Equipamentos | Z2: Descida D'água Cortes em Degraus ARM-DCD 02 AC/BC | AA2: Revestimento de Talude em Concreto | AB2: Valeta de Proteção de Taludes | AC2: Construção de Microbacias de Retenção | AD2: Implantação de Trilha Ecológica | AE2: Limpeza de Aceiro | AF2: Drenagem Pluvial Frontal ADM Projeto Salitre | AG2: Galpão de transbordo de embalagens de agrotóxicos
C3: Unidades | D3: ha | E3: ha | F3: m² | G3: m³ | H3: m | I3: ha | J3: m³ | K3: m³ | L3: ha | M3: t*km | N3: ha | O3: ha | P3: un | Q3: un | R3: un | S3: un | T3: m | U3: m³ | V3: mês | W3: m³ | X3: un | Y3: un | Z3: un | AA3: un | AB3: un | AC3: un | AD3: m | AE3: m² | AF3: un | AG3: un
A4: J 03A | B4: 0.5 | D4: 0 | E4: 0 | F4: 0 | G4: 0 | H4: 400 | I4: =B4 -> 0.5 | J4: 0 | K4: =10000*B4*0.2*0.5 -> 500 | L4: =B4 -> 0.5 | M4: =L4*1665*8*(30/14)*0.015 -> 214.0714286 | N4: =L4 -> 0.5 | O4: =L4 -> 0.5 | P4: 0 | Q4: 0 | R4: 0 | S4: 1 | T4: =(N4/(N4+N5))*5528 -> 5528 | U4: 0 | V4: 0 | W4: 0 | X4: 0 | Y4: 0 | Z4: 0 | AA4: 0 | AB4: 0 | AC4: 0 | AD4: 0 | AE4: 0 | AF4: 0 | AG4: 0
A5: BF 03 | B5: 7.2 | D5: 0 | E5: 0 | F5: 0 | G5: 0 | H5: 4100 | I5: 0 | J5: 0 | K5: 0 | L5: 0 | M5: =L5*1665*8*(30/14)*0.015 -> 0 | N5: =L5 -> 0 | O5: =L5 -> 0 | P5: 0 | Q5: 0 | R5: 1 | S5: 1 | T5: =(N5/(N4+N5))*5528 -> 0 | U5: 0 | V5: 0 | W5: 0 | X5: 0 | Y5: 0 | Z5: 0 | AA5: 0 | AB5: 0 | AC5: 0 | AD5: 0 | AE5: 0 | AF5: 0 | AG5: 0
A6: J 04 | B6: 6.4 | D6: 0 | E6: 0 | F6: 0 | G6: 0 | H6: 0 | I6: 0 | J6: =(B6*10000/12)*(0.5*0.5*0.5)*(1/4) -> 166.6666667 | K6: 0 | L6: 2 | M6: 856.2857143 | N6: 2 | O6: 2 | P6: 0 | Q6: 0 | R6: 0 | S6: 1 | T6: 0 | U6: 0 | V6: 0 | W6: 0 | X6: 0 | Y6: 0 | Z6: 0 | AA6: 0 | AB6: 0 | AC6: 0 | AD6: 0 | AE6: 0 | AF6: 0 | AG6: 0
A7: J06 | B7: 9.2 | D7: 0 | E7: 0 | F7: 0 | G7: 0 | H7: 1350 | I7: =B7*0.5 -> 4.6 | J7: 0 | K7: =10000*B7*0.2*0.2 -> 3680 | L7: =0.7*B7 -> 6.44 | M7: 2757.24 | N7: 6.44 | O7: 6.44 | P7: 0 | Q7: 0 | R7: 1 | S7: 1 | T7: 1350 | U7: 0 | V7: 0 | W7: 0 | X7: 0 | Y7: 0 | Z7: 0 | AA7: 0 | AB7: 0 | AC7: 0 | AD7: 0 | AE7: 0 | AF7: 0 | AG7: 0
A8: J09 | B8: 18 | D8: 0 | E8: 0 | F8: 0 | G8: 0 | H8: 1500 | I8: =B8*0.3 -> 5.4 | J8: 0 | K8: 0 | L8: 0 | M8: 0 | N8: 0 | O8: 0 | P8: 0 | Q8: 0 | R8: 1 | S8: 1 | T8: 2040 | U8: 0 | V8: 0 | W8: 0 | X8: 0 | Y8: 0 | Z8: 0 | AA8: 0 | AB8: 0 | AC8: 0 | AD8: 0 | AE8: 0 | AF8: 0 | AG8: 0
A9: J11 | B9: 17.7 | D9: 0 | E9: 0 | F9: 0 | G9: 0 | H9: 0 | I9: 0 | J9: 0 | K9: 0 | L9: =0.5*B9 -> 8.85 | M9: 3789.064286 | N9: 8.85 | O9: 8.85 | P9: 0 | Q9: 1 | R9: 1 | S9: 1 | T9: 500 | U9: 0 | V9: 0 | W9: 0 | X9: 0 | Y9: 0 | Z9: 0 | AA9: 0 | AB9: 0 | AC9: 0 | AD9: 0 | AE9: 0 | AF9: 0 | AG9: 0
A10: J12 | B10: 10.5 | D10: 0 | E10: 0 | F10: 0 | G10: 0 | H10: 2450 | I10: =B10*0.8 -> 8.4 | J10: 0 | K10: 0 | L10: 0 | M10: 0 | N10: 0 | O10: 0 | P10: 0 | Q10: 0 | R10: 1 | S10: 1 | T10: 2450 | U10: 0 | V10: 0 | W10: 0 | X10: 0 | Y10: 0 | Z10: 0 | AA10: 0 | AB10: 0 | AC10: 0 | AD10: 0 | AE10: 0 | AF10: 0 | AG10: 0
A11: BF13 | B11: 4 | D11: 0 | E11: 0 | F11: 0 | G11: 0 | H11: 1800 | I11: 0 | J11: 0 | K11: 0 | L11: 0 | M11: 0 | N11: 0 | O11: 0 | P11: 0 | Q11: 0 | R11: 1 | S11: 1 | T11: 1200 | U11: 0 | V11: 0 | W11: 0 | X11: 0 | Y11: 0 | Z11: 0 | AA11: 0 | AB11: 0 | AC11: 0 | AD11: 0 | AE11: 0 | AF11: 0 | AG11: 0
A12: BF 14 | B12: 1.6 | D12: 0 | E12: 0 | F12: 0 | G12: 0 | H12: 1800 | I12: 0 | J12: 0 | K12: 0 | L12: 0 | M12: 0 | N12: 0 | O12: 0 | P12: 0 | Q12: 0 | R12: 0 | S12: 1 | T12: 400 | U12: 0 | V12: 0 | W12: 0 | X12: 0 | Y12: 0 | Z12: 0 | AA12: 0 | AB12: 0 | AC12: 0 | AD12: 0 | AE12: 0 | AF12: 0 | AG12: 0
A13: J 15 | B13: 4.2 | D13: 0 | E13: 0 | F13: 0 | G13: 0 | H13: 6200 | I13: 0 | J13: 0 | K13: 0 | L13: 0 | M13: 0 | N13: 0 | O13: 0 | P13: 0 | Q13: 0 | R13: 1 | S13: 1 | T13: 8800 | U13: 0 | V13: 0 | W13: 0 | X13: 0 | Y13: 0 | Z13: 0 | AA13: 0 | AB13: 0 | AC13: 0 | AD13: 0 | AE13: 0 | AF13: 0 | AG13: 0
A14: J 16 | B14: 1.9 | D14: 0 | E14: 0 | F14: 0 | G14: 0 | H14: 1440 | I14: 0 | J14: 0 | K14: 0 | L14: 0 | M14: 0 | N14: 0 | O14: 0 | P14: 0 | Q14: 0 | R14: 1 | S14: 1 | T14: =10500/5 -> 2100 | U14: 0 | V14: 0 | W14: 0 | X14: 0 | Y14: 0 | Z14: 0 | AA14: 0 | AB14: 0 | AC14: 0 | AD14: 0 | AE14: 0 | AF14: 0 | AG14: 0
A15: J 17 | B15: 8.4 | D15: 0 | E15: 0 | F15: 0 | G15: 0 | H15: 1440 | I15: 0 | J15: 0 | K15: 0 | L15: =0.7*B15 -> 5.88 | M15: 2517.48 | N15: 5.88 | O15: 5.88 | P15: 0 | Q15: 0 | R15: 1 | S15: 1 | T15: =10500/5 -> 2100 | U15: 0 | V15: 0 | W15: 0 | X15: 0 | Y15: 0 | Z15: 0 | AA15: 0 | AB15: 0 | AC15: 0 | AD15: 0 | AE15: 0 | AF15: 0 | AG15: 0
A16: BF 18 | B16: 5.4 | D16: 0 | E16: 0 | F16: 0 | G16: 0 | H16: 1440 | I16: 0 | J16: 0 | K16: 0 | L16: 0 | M16: 0 | N16: 0 | O16: 0 | P16: 0 | Q16: 0 | R16: 1 | S16: 1 | T16: =10500/5 -> 2100 | U16: 0 | V16: 0 | W16: 0 | X16: 0 | Y16: 0 | Z16: 0 | AA16: 0 | AB16: 0 | AC16: 0 | AD16: 0 | AE16: 0 | AF16: 0 | AG16: 0
A17: J19 | B17: 5.8 | D17: 0 | E17: 0 | F17: 0 | G17: 0 | H17: 1440 | I17: 0 | J17: 0 | K17: 0 | L17: 0 | M17: 0 | N17: 0 | O17: 0 | P17: 0 | Q17: 0 | R17: 1 | S17: 1 | T17: =10500/5 -> 2100 | U17: 0 | V17: 0 | W17: 0 | X17: 0 | Y17: 0 | Z17: 0 | AA17: 0 | AB17: 0 | AC17: 0 | AD17: 0 | AE17: 0 | AF17: 0 | AG17: 0
A18: J20 | B18: 10.9 | D18: 0 | E18: 0 | F18: 0 | G18: 0 | H18: 1440 | I18: 0 | J18: 0 | K18: 0 | L18: 0 | M18: 0 | N18: 0 | O18: 0 | P18: 0 | Q18: 0 | R18: 0 | S18: 1 | T18: =10500/5 -> 2100 | U18: 0 | V18: 0 | W18: 0 | X18: 0 | Y18: 0 | Z18: 0 | AA18: 0 | AB18: 0 | AC18: 0 | AD18: 0 | AE18: 0 | AF18: 0 | AG18: 0
A19: APP SF | B19: =7.75+4.15 -> 11.9 | D19: 11 | E19: 0 | F19: 0 | G19: 0 | H19: 1600 | I19: =B19 -> 11.9 | J19: 0 | K19: 0 | L19: =B19 -> 11.9 | M19: 5094.9 | N19: 11.9 | O19: 11.9 | P19: 0 | Q19: 0 | R19: 0 | S19: 1 | T19: 1600 | U19: =25*0.3*6 -> 45 | V19: 0 | W19: =3*7*300 -> 6300 | X19: =300*15*10 -> 45000 | Y19: 0 | Z19: 1 | AA19: 1 | AB19: 1 | AC19: 0 | AD19: 0 | AE19: 0 | AF19: 0 | AG19: 0
A20: Serrote C. Pinto | B20: 95.4 | D20: 0 | E20: 0 | F20: 0 | G20: 0 | H20: 4500 | I20: 0 | J20: 0 | K20: 0 | L20: 0 | M20: 0 | N20: 0 | O20: 0 | P20: 0 | Q20: 0 | R20: 1 | S20: 1 | T20: 4050 | U20: 0 | V20: 0 | W20: 0 | X20: 0 | Y20: 0 | Z20: 0 | AA20: 0 | AB20: 0 | AC20: 0 | AD20: 0 | AE20: 0 | AF20: 0 | AG20: 0
A21: RL PRAD | B21: 74.7 | D21: 22.4 | E21: 50.3 | F21: 0 | G21: 0 | H21: 0 | I21: 0 | J21: 0 | K21: 0 | L21: 22.4 | M21: 9590.4 | N21: 22.4 | O21: 22.4 | P21: 0 | Q21: 0 | R21: 0 | S21: 2 | T21: 0 | U21: 0 | V21: 0 | W21: 0 | X21: 0 | Y21: 0 | Z21: 0 | AA21: 0 | AB21: 0 | AC21: 0 | AD21: 0 | AE21: 0 | AF21: 0 | AG21: 0
A22: RL PREV | B22: 400 | D22: 0 | E22: 0 | F22: 0 | G22: 0 | H22: 0 | I22: 0 | J22: 0 | K22: 0 | L22: 20 | M22: 8562.857143 | N22: 20 | O22: 20 | P22: 0 | Q22: 1 | R22: 0 | S22: 4 | T22: 0 | U22: 0 | V22: 0 | W22: 0 | X22: 0 | Y22: 0 | Z22: 0 | AA22: 0 | AB22: 0 | AC22: 35 | AD22: 0 | AE22: 0 | AF22: 0 | AG22: 0
A23: RL (sem PRAD) | B23: =2033-B21 -> 1958.3 | D23: 0 | E23: =B23/2 -> 979.15 | F23: =30*6 -> 180 | G23: =3*6*6 -> 108 | H23: 0 | I23: 0 | J23: 0 | K23: 0 | L23: 0 | M23: 0 | N23: 0 | O23: 0 | P23: 200 | Q23: 0 | R23: 0 | S23: 1 | T23: 0 | U23: 0 | V23: 0 | W23: 0 | X23: 0 | Y23: 0 | Z23: 0 | AA23: 0 | AB23: 0 | AC23: 0 | AD23: 9000 | AE23: 103650 | AF23: 0 | AG23: 0
A24: Geral | B24: - | D24: 0 | E24: 0 | F24: 0 | G24: 0 | H24: 31700 | I24: 0 | J24: 0 | K24: 0 | L24: 1 | M24: 428.1428571 | N24: 1 | O24: 0 | P24: - | Q24: - | R24: - | S24: 107 | T24: 0 | U24: 0 | V24: 6 | W24: 0 | X24: 0 | Y24: 1 | Z24: 0 | AA24: 0 | AB24: 0 | AC24: 50 | AD24: 3000 | AE24: 0 | AF24: 1 | AG24: 1
A26: Total | B26: =SUM(B4:B23)-B22 -> 2252 | D26: =SUM(D4:D23) -> 33.4 | E26: 1029.45 | F26: 180 | G26: 108 | H26: =SUM(H4:H24) -> 64600 | I26: 30.8 | J26: 166.6666667 | K26: 4180 | L26: =SUM(L4:L24) -> 78.97 | M26: =SUM(M4:M24) -> 33810.44143 | N26: =SUM(N4:N24) -> 78.97 | O26: 77.97 | P26: 200 | Q26: =SUM(Q4:Q24) -> 2 | R26: 12 | S26: =SUM(S4:S24) -> 131 | T26: 38418 | U26: 45 | V26: =SUM(V4:V24) -> 6 | W26: 6300 | X26: 45000 | Y26: 1 | Z26: 1 | AA26: 1 | AB26: 1 | AC26: 85 | AD26: 12000 | AE26: 103650 | AF26: 1 | AG26: 1
